Period,Quarter,"Recipient Name",City,Province,Country,Title,Language,Genre,Date,"Final Value","Original Value",Type,Purpose,Comments
2017-2018,P1,"Search Engine Films Inc.",Toronto,Ontario,Canada,"Jean of the Joneses",English,Comedy,2017-04-19,31245.00,49748.00,"Recoupable Advance","Marketing Program","Amended contract signed  14-OCT-16"
2017-2018,P1,"Angelique's Isle Productions Inc.",Mississauga,Ontario,Canada,"Angelique's Isle  ",English,"Historical Drama",2017-04-24,650000.00,600000.00,Investment,"Production Program","Amended contract signed  22-FEB-17"
2017-2018,P1,"9199-8294 Qu�bec Inc.",Montreal,Quebec,Canada,"D�mons (Les)",French,Drama,2017-05-04,5000.00,5000.00,Contribution,"International Marketing Program",
2017-2018,P1,"Entertainment One Films Canada Inc.",Montreal,Quebec,Canada,"9th Life of Louis Drax (The) ",English,Drama,2017-05-29,39287.00,48077.00,"Recoupable Advance","Marketing Program","Amended contract signed  23-NOV-16"
2017-2018,P1,"Momentum Pictures (Canada), Inc.",Toronto,Ontario,Canada,"Milton's Secret",English,Drama,2017-06-09,66569.00,71421.00,"Recoupable Advance","Marketing Program","Amended contract signed  27-FEB-17"
2017-2018,P1,"Films Christal, s.e.c.(Les)",Montreal,Quebec,Canada,Hibou,French,Comedy,2017-06-16,17458.00,20468.00,"Recoupable Advance","Marketing Program","Amended contract signed  30-SEP-16"
2017-2018,P1,"Films S�ville Inc. (Les) / Seville Pictures Inc.",Montreal,Quebec,Canada,"TWO LOVERS AND A BEAR",English,Drama,2017-06-29,283066.00,331810.00,"Recoupable Advance","Marketing Program","Amended contract signed  30-NOV-16"
2017-2018,P2,"Christal Films Productions Inc.",Montreal,Quebec,Canada,"Le bon gars",French,Comedy,2017-07-04,30380.00,60000.00,"Recoupable Advance","Development Program","Amended contract signed  17-SEP-13"
2017-2018,P2,"Copperheart Entertainment Inc.",Toronto,Ontario,Canada,Sandkings,English,"Science fiction/Fantasy/Tale",2017-07-06,0.00,41022.00,"Recoupable Advance","Development Program","Amended contract signed  13-JAN-16"
2017-2018,P2,"Copperheart Entertainment Inc.",Toronto,Ontario,Canada,ZOOmbies,English,Comedy,2017-07-06,90000.00,48978.00,"Recoupable Advance","Development Program","Amended contract signed  13-JAN-16"
2017-2018,P2,"9251-4181 Qu�bec inc.",Montreal,Quebec,Canada,"Trois p'tits cochons II (Les)",French,Comedy,2017-07-11,2120963.00,2200000.00,Investment,"Production Program","Amended contract signed  13-JUL-15"
2017-2018,P2,"Trench 11 Productions Ontario Inc.",Toronto,Ontario,Canada,"Trench 11",English,Thriller,2017-07-12,475000.00,400000.00,Investment,"Production Program","Amended contract signed  14-DEC-16"
2017-2018,P2," SPF (TBS) Productions Inc.",Toronto,Ontario,Canada,"Through Black Spruce",English,Drama,2017-07-13,3080000.00,2800000.00,Investment,"Production Program","Amended contract signed  09-MAR-17"
2017-2018,P2,"Meditation Park Film Ltd. ",Vancouver,"British Columbia",Canada,"Meditation Park",English,Drama,2017-07-25,925000.00,825000.00,Investment,"Production Program","Amended contract signed  22-FEB-17"
2017-2018,P2,"�cho M�dia Les Rois Mongols Inc.",Montreal,Quebec,Canada,"Rois mongols (Les)",French,Drama,2017-07-28,1310000.00,1250000.00,Investment,"Production Program","Amended contract signed  15-DEC-16"
2017-2018,P2,"Mongrel Media Inc.",Toronto,Ontario,Canada,Natasha,English,Drama,2017-08-01,30569.00,50201.00,"Recoupable Advance","Marketing Program","Amended contract signed  06-MAY-16"
2017-2018,P2,"Original Title One Productions Inc.",Vancouver,"British Columbia",Canada,"""Once There Was a Winter (Formerly """"Winter"""")""",English,Thriller,2017-08-01,193200.00,150000.00,Investment,"Production Program","Amended contract signed  18-JAN-16"
2017-2018,P2,"KRH film Inc.",Montreal,Quebec,Canada,Touched,English,Mystery/Crime/Police,2017-08-08,325000.00,300000.00,"Investment, Recoupable Advance","Production Program","Amended contract signed  29-FEB-16"
2017-2018,P2,"Les Films Compass Inc",Montreal,Quebec,Canada,Venus,English,Comedy,2017-08-10,325000.00,300000.00,"Investment, Recoupable Advance","Production Program","Amended contract signed  24-MAR-16"
2017-2018,P2,"Films S�ville Inc. (Les) / Seville Pictures Inc.",Montreal,Quebec,Canada,"Juste la fin du monde",French,Drama,2017-08-28,396272.00,453217.00,"Recoupable Advance","Marketing Program","Amended contract signed  20-OCT-16"
2017-2018,P2,"Stickgirl Productions Inc.",Vancouver,"British Columbia",Canada,"Window Horses",English,Drama,2017-08-30,25000.00,25000.00,Contribution,"International Marketing Program",
2017-2018,P2,"Pacific Northwest Pictures Inc.",Vancouver,"British Columbia",Canada,Lavender,English,Thriller,2017-08-31,32432.00,44220.00,"Recoupable Advance","Marketing Program","Amended contract signed  26-AUG-16"
2017-2018,P2,"SEW Productions (Quebec) Inc.",Dewittville,Quebec,Canada,"Someone Else's Wedding",English,"Romantic Comedy",2017-08-31,450000.00,400000.00,Investment,"Production Program","Amended contract signed  02-DEC-16"
2017-2018,P2,"Gestion Id�acom International Inc. (9085-7525 Qu�bec Inc.) ",Montreal,Quebec,Canada,"M�galocity - la folie architecturale des dictateurs ",French,Documentary,2017-09-13,12000.00,12000.00,"Recoupable Advance",Mini-treaties,
2017-2018,P2,"Lowik M�dia 2008 Inc.",Baie-Saint-Paul,Quebec,Canada,R�volt�es,French,Documentary,2017-09-22,25000.00,25000.00,"Recoupable Advance",Mini-treaties,
2017-2018,P2,"Toast Media Inc.",Montreal,Quebec,Canada,"Chiliheads, une histoire ben hot!",French,Documentary,2017-09-24,18700.00,18700.00,"Recoupable Advance",Mini-treaties,
2017-2018,P2,"Invisible Light Productions Manitoba Inc.",Winnipeg,Manitoba,Canada,"Into Invisible Light",English,Drama,2017-09-25,400000.00,300000.00,Investment,"Production Program","Amended contract signed  03-MAR-17"
2017-2018,P2,"Films S�ville Inc. (Les) / Seville Pictures Inc.",Montreal,Quebec,Canada,NELLY,French,Drama,2017-09-28,203478.00,203546.00,"Recoupable Advance","Marketing Program","Amended contract signed  17-FEB-17"
2017-2018,P3,"Gestion Id�acom International Inc. (9085-7525 Qu�bec Inc.) ",Montreal,Quebec,Canada,"Orwell - Huxley : 1984 ou Le meilleur des mondes",French,Documentary,2017-10-05,10000.00,0.00,"Recoupable Advance",Mini-treaties,
2017-2018,P3,"Unpaved Productions Inc.",Coquitlam,"British Columbia",Canada,"Sunflower Hour",English,Comedy,2017-10-06,27091.00,30000.00,"Recoupable Advance","Marketing Program","Amended contract signed  21-MAR-12"
2017-2018,P3,"Whizbang Films Inc.",Toronto,Ontario,Canada,"Charcoal's Way",English,Mystery/Crime/Police,2017-10-10,15000.00,25000.00,"Recoupable Advance","Development Program","Amended contract signed  14-DEC-15"
2017-2018,P3,"Raven Banner Releasing Inc.",Toronto,Ontario,Canada,Borealis,English,Drama,2017-10-12,132190.00,136950.00,"Recoupable Advance","Marketing Program","Amended contract signed  04-AUG-15"
2017-2018,P3,"PCF Bolduc Le Film Inc.",Montreal,Quebec,Canada,"Bolduc (La)",French,"Historical Drama",2017-10-24,2260000.00,2100000.00,Investment,"Production Program","Amended contract signed  13-DEC-16"
2017-2018,P3,"BrancSeater Productions Inc.",Toronto,Ontario,Canada,"People Hold On",English,Drama,2017-10-26,49261.00,56000.00,Investment,"Production Program","Amended contract signed  18-DEC-14"
2017-2018,P3,"Capital Motion Picture Group Inc.",Ottawa,Ontario,Canada,"Away From Everywhere",English,Drama,2017-11-03,27420.00,39532.00,"Recoupable Advance","Marketing Program","Amended contract signed  02-DEC-16"
2017-2018,P3,"Animiki See Digital Production Inc.",Winnipeg,Manitoba,Canada,"Digital Nations",English,,2017-11-03,160000.00,200000.00,Grant,"Promotion Program (Canada New Media Fund)","Amended contract signed  14-MAR-08"
2017-2018,P3,"9152-3068 Qu�bec Inc. ",Montreal,Quebec,Canada,"Jardinier (Le) / The Gardener",French,Documentary,2017-11-09,0.00,12312.00,"Recoupable Advance","Marketing Program","Amended contract signed  15-MAR-17"
2017-2018,P3,"Films S�ville Inc. (Les) / Seville Pictures Inc.",Montreal,Quebec,Canada,"�a sent la coupe",French,Drama,2017-11-09,223985.00,240867.00,"Recoupable Advance","Marketing Program","Amended contract signed  23-MAR-17"
2017-2018,P3,"Intuitive Pictures Inc.",Montreal,Quebec,Canada,"Terre Unique",French,Documentary,2017-11-16,11000.00,0.00,"Recoupable Advance",Mini-treaties,
2017-2018,P3,"Films S�ville Inc. (Les) / Seville Pictures Inc.",Montreal,Quebec,Canada,"HOCHELAGA, TERRE DES �MES",French,"Historical Drama",2017-11-17,100000.00,100000.00,Contribution,"International Marketing Program",
2017-2018,P3,"Serendipity Point Films Inc.",Toronto,Ontario,Canada,Feral,English,Thriller,2017-11-21,200000.00,18232.00,"Recoupable Advance","Development Program","Amended contract signed  22-DEC-16"
2017-2018,P3,"Serendipity Point Films Inc.",Toronto,Ontario,Canada,Re-Form,English,Mystery/Crime/Police,2017-11-21,183200.00,54870.00,"Recoupable Advance","Development Program","Amended contract signed  22-DEC-16"
2017-2018,P3,"Serendipity Point Films Inc.",Toronto,Ontario,Canada,"Two Gun Cohen",English,"Historical Drama",2017-11-21,168262.00,31738.00,"Recoupable Advance","Development Program","Amended contract signed  22-DEC-16"
2017-2018,P3,"Rezolution Pictures International Inc.",Outremont,Quebec,Canada,"Rumble: The Indians Who Rocked The World",English,Documentary,2017-11-21,25000.00,25000.00,Contribution,"International Marketing Program",
2017-2018,P3,"SuperGrid Film Productions Inc.",Regina,Saskatchewan,Canada,Supergrid,English,Action/Adventure,2017-11-22,400000.00,350000.00,Investment,"Production Program","Amended contract signed  24-MAR-17"
2017-2018,P3,"MAX FILMS (HTA) INC.",Montreal,Quebec,Canada,"HOCHELAGA, TERRE DES �MES",French,"Historical Drama",2017-11-23,4000000.00,3500000.00,"Recoupable Advance","Production Program","Amended contract signed  23-NOV-16"
2017-2018,P3,"D Films Corporation",Toronto,Ontario,Canada,Backcountry,English,Thriller,2017-11-30,138940.00,221297.00,"Recoupable Advance","Marketing Program","Amended contract signed  27-JUL-15"
2017-2018,P3,"Funfilm Distribution Inc.",Montreal,Quebec,Canada,"Cyclotron (Le)",French,"Historical Drama",2017-12-05,29086.00,32000.00,"Recoupable Advance","Marketing Program","Amended contract signed  17-FEB-17"
2017-2018,P3,"Funfilm Distribution Inc.",Montreal,Quebec,Canada,"Maudite poutine",French,Drama,2017-12-05,20704.00,28000.00,"Recoupable Advance","Marketing Program","Amended contract signed  10-FEB-17"
2017-2018,P3,"Elevation Pictures Corp.",Toronto,Ontario,Canada,"Below Her Mouth",English,Drama,2017-12-07,329905.00,367599.00,"Recoupable Advance","Marketing Program","Amended contract signed  22-FEB-17"
2017-2018,P3,"Production Deux nuits Inc.",Montreal,Quebec,Canada,1:54,French,Drama,2017-12-08,20000.00,20000.00,Contribution,"International Marketing Program",
2017-2018,P3,"Entertainment One Films Canada Inc.",Montreal,Quebec,Canada,"Goon: Last of the Enforcers",English,Comedy,2017-12-11,1457731.00,2277788.00,"Recoupable Advance","Marketing Program","Amended contract signed  17-MAR-16"
2017-2018,P3,"Synopsis Films Inc.",Montreal,Quebec,Canada,"�a sent la coupe",French,Drama,2017-12-11,1368394.00,1400000.00,"Recoupable Advance","Production Program","Amended contract signed  10-MAR-16"
2017-2018,P3,"D Films Corporation",Toronto,Ontario,Canada,"Sleeping Giant",English,Drama,2017-12-14,184174.00,239006.00,"Recoupable Advance","Marketing Program","Amended contract signed  25-APR-16"
2017-2018,P3,"Raven Banner Releasing Inc.",Toronto,Ontario,Canada,"Todd & The Book of Pure Evil: The End of The End",English,Comedy,2017-12-15,150923.00,19350.00,"Recoupable Advance","Marketing Program","Amended contract signed  09-MAR-17"
2017-2018,P3,"Lowik M�dia 2008 Inc.",Baie-Saint-Paul,Quebec,Canada,"Roi des Cuisiniers: L'incroyable Destin d'Auguste Escoffier (Le)",French,Documentary,2017-12-18,10500.00,0.00,"Recoupable Advance",Mini-treaties,
2017-2018,P3,"F�lix & Paul Studios Inc.",Montreal,Quebec,Canada,Couleurs,English,"Science fiction/Fantasy/Tale",2017-12-21,118250.00,74480.00,"Recoupable Advance","Development Program",
2017-2018,P3,"F�lix & Paul Studios Inc.",Montreal,Quebec,Canada,Gymnasium,English,Drama,2017-12-21,43770.00,43770.00,"Recoupable Advance","Development Program",
2017-2018,P3,"F�lix & Paul Studios Inc.",Montreal,Quebec,Canada,"Pink Box",English,"Science fiction/Fantasy/Tale",2017-12-21,200000.00,81750.00,"Recoupable Advance","Development Program",
2017-2018,P4,"2033161 Ontario Limited d.b.a. Films We Like",Toronto,Ontario,Canada,WEIRDOS,English,Drama,2018-01-04,32627.00,44223.00,"Recoupable Advance","Marketing Program","Amended contract signed  27-JAN-17"
2017-2018,P4,"Mongrel Media Inc.",Toronto,Ontario,Canada,"Tempest Storm",English,Documentary,2018-01-05,11474.00,21863.00,"Recoupable Advance","Marketing Program","Amended contract signed  07-JUL-16"
2017-2018,P4,"Ravenwest Productions Inc.",Vancouver,"British Columbia",Canada,Normal,English,Drama,2018-01-16,1085.00,4500.00,"Recoupable Advance","International Marketing Program","Amended contract signed  16-NOV-07"
2017-2018,P4,"Forum Films 2005 Inc.",Montreal,Quebec,Canada,"""""""Le prince des jouisseurs""""""",French,"Historical Drama",2018-01-17,35468.00,30000.00,"Recoupable Advance","Development Program","Amended contract signed  24-OCT-16"
2017-2018,P4,"Bah Humbug Films Inc.",Toronto,Ontario,Canada,"Man Who Invented Christmas (The)",English,"Historical Drama",2018-01-18,25000.00,25000.00,Contribution,"International Marketing Program",
2017-2018,P4,"Winesto Films Inc.",Winnipeg,Manitoba,Canada,Billy,English,Drama,2018-01-31,12000.00,15000.00,"Recoupable Advance","Production Program","Amended contract signed  05-OCT-09"
2017-2018,P4,"The New Romantic Inc.",Vancouver,"British Columbia",Canada,"The New Romantic (formerly The Undergraduate)",English,Comedy,2018-01-31,425000.00,350000.00,Investment,"Production Program","Amended contract signed  23-MAR-17"
2017-2018,P4,"Films Christal, s.e.c.(Les)",Montreal,Quebec,Canada,"Affam�s (Les)",French,Horror,2018-02-01,134417.00,20000.00,"Recoupable Advance","Marketing Program","Amended contract signed  15-DEC-15"
2017-2018,P4,"Axia Films inc.",Montreal,Quebec,Canada,"Louise en hiver",French,Drama,2018-02-02,28404.00,33912.00,"Recoupable Advance","Marketing Program","Amended contract signed  28-FEB-17"
2017-2018,P4,"Axia Films inc.",Montreal,Quebec,Canada,"Pacte des anges (Le)",French,Drama,2018-02-13,198441.00,188743.00,"Recoupable Advance","Marketing Program","Amended contract signed  28-SEP-16"
2017-2018,P4,"Breadwinner Canada Inc.",Toronto,Ontario,Canada,"Breadwinner (The)",English,Drama,2018-02-21,135000.00,135000.00,Contribution,"International Marketing Program",
2017-2018,P4,"A71 Entertainment Inc.",Toronto,Ontario,Canada,"Sadie's Last Day on Earth",English,Comedy,2018-03-06,73360.00,74167.00,"Recoupable Advance","Marketing Program","Amended contract signed  08-DEC-16"
2017-2018,P4,"HR Pictures Inc.",Halifax,"Nova Scotia",Canada,"Hopeless (Romantic)",English,"Romantic Comedy",2018-03-09,500000.00,450000.00,Investment,"Production Program","Amended contract signed  09-MAR-17"
2017-2018,P4,"Productions Pixcom Inc.",Montreal,Quebec,Canada,"projet Sam",French,Drama,2018-03-14,400000.00,200000.00,"Recoupable Advance","Development Program",
2017-2018,P4,"Stickgirl Productions Inc.",Vancouver,"British Columbia",Canada,"Window Horses",English,Drama,2018-03-14,35000.00,25000.00,Contribution,"International Marketing Program","Amended contract signed  30-AUG-17"
2017-2018,P4,"Films S�ville Inc. (Les) / Seville Pictures Inc.",Montreal,Quebec,Canada,"Ballerina ",English,Drama,2018-03-15,1176240.00,1222370.00,"Recoupable Advance","Marketing Program","Amended contract signed  23-MAR-17"
2017-2018,P4,"Small Shack Productions Inc.","St. John's",Newfoundland/Labrador,Canada,Maudie,English,Drama,2018-03-19,10000.00,10000.00,Contribution,"International Marketing Program",
2017-2018,P4,"Level Film Inc.",Toronto,Ontario,Canada,"Colossal Failure of the Modern Relationship (The)",English,"Romantic Comedy",2018-03-20,24384.00,37661.00,"Recoupable Advance","Marketing Program","Amended contract signed  03-OCT-16"
2017-2018,P4,"9335-2631 Qu�bec Inc.",Montreal,Quebec,Canada,D�rive,French,Drama,2018-03-21,435000.00,400000.00,Investment,"Production Program","Amended contract signed  08-MAR-16"
2017-2018,P4,"Productions Caramel Film Inc.",Montreal,Quebec,Canada,"Gut Instinct",English,Mystery/Crime/Police,2018-03-21,126028.00,126028.00,"Recoupable Advance","Production Program","Amended contract signed  08-MAR-16"
2017-2018,P4,"9337-3868 Quebec Inc.",Montreal,Quebec,Canada,"Ville Neuve",French,Drama,2018-03-21,328334.00,300000.00,Investment,"Production Program","Amended contract signed  22-MAR-16"
2017-2018,P4,"Attraction Images Productions X Inc.",Montreal,Quebec,Canada,"14 jours, 12 nuits",French,Drama,2018-03-14,1450000.00,1450000.00,Advance,"Production Program",
2017-2018,P1,"Corporation de d�veloppement et de production ACPAV Inc.",Montreal,Quebec,Canada,"La disparition des lucioles",French,Drama,2017-05-16,1100000.00,1100000.00,Advance,"Production Program",
2017-2018,P3,"9364-2825 Qu�bec Inc",Montreal,Quebec,Canada,"Justice dot Net",English,Thriller,2017-10-20,445000.00,445000.00,Investment,"Production Program",
2017-2018,P1,"1991 Inc.",Montreal,Quebec,Canada,1991,French,Comedy,2017-05-30,1900000.00,1900000.00,Investment,"Production Program",
2017-2018,P4,"10346764 Canada Inc",Montreal,Quebec,Canada,"Lepage au soleil",French,Documentary,2018-03-09,125000.00,125000.00,Contribution,"Theatrical Documentary Program",
2017-2018,P4,"LCDT inc.",Montreal,Quebec,Canada,"La Course des Tuques / Snowtime! 2",French,Comedy,2018-01-05,1784166.00,1784166.00,Investment,"Production Program",
2017-2018,P2,"9361-4378 Qu�bec inc.",Montreal,Quebec,Canada,Gen�se,French,Drama,2017-08-15,1000000.00,1000000.00,Investment,"Production Program",
2017-2018,P2,"Les Productions Dionysos inc. / Productions Dionysos inc.",Quebec,Quebec,Canada,"Le sang du P�lican",French,Documentary,2017-09-22,100000.00,100000.00,Contribution,"Theatrical Documentary Program",
2017-2018,P1,"Shut Up & Colour Pictures Inc.",Halifax,"Nova Scotia",Canada,"Suck it Up",English,Comedy,2017-06-29,5000.00,5000.00,Contribution,"International Marketing Program",
2017-2018,P2,"TGE Films Inc.",Toronto,Ontario,Canada,"Invisible Heart (The)",English,Documentary,2017-09-07,119655.00,119655.00,Investment,"Theatrical Documentary Program",
2017-2018,P1,"Tomorrow's Power Inc.",Montreal,Quebec,Canada,"Tomorrow's Power",English,Documentary,2017-06-12,75000.00,75000.00,Investment,"Theatrical Documentary Program",
2017-2018,P3,"2523867 Ontario Inc.",Toronto,Ontario,Canada,"Rick Kelly Project  (The)",English,Documentary,2017-11-20,75000.00,75000.00,Investment,"Theatrical Documentary Program",
2017-2018,P2,"The Hip Doc Inc.",Toronto,Ontario,Canada,"Long Time Running",English,Documentary,2017-07-18,125000.00,125000.00,Investment,"Theatrical Documentary Program",
2017-2018,P2,"H2LShiners Inc.",Montreal,Quebec,Canada,"Pipe Dreams",English,Documentary,2017-07-18,125000.00,125000.00,Contribution,"Theatrical Documentary Program",
2017-2018,P3,"9287-1599 Qu�bec inc.",Montreal,Quebec,Canada,"Lib�ration Conditionnelle",French,Documentary,2017-12-04,100000.00,100000.00,Contribution,"Theatrical Documentary Program",
2017-2018,P3,"La terre vue du coeur Inc.",Montreal,Quebec,Canada,"La Terre vue du coeur",French,Documentary,2017-12-06,100000.00,100000.00,Contribution,"Theatrical Documentary Program",
2017-2018,P2,"Notice Pictures Inc.",Toronto,Ontario,Canada,"Send Us Your Brother",English,Documentary,2017-08-28,125000.00,125000.00,Investment,"Theatrical Documentary Program",
2017-2018,P2,"Les Productions Shootfilms Inc.",Morin-Heights,Quebec,Canada,"Le cheval oubli�: souvenirs d'un soldat canadien",French,Documentary,2017-09-11,173500.00,173500.00,Contribution,"Theatrical Documentary Program",
2017-2018,P2,"Greenground Productions Inc.",Montreal,Quebec,Canada,"Primas (previous title - Rocio)",French,Documentary,2017-08-03,30000.00,30000.00,Contribution,"Theatrical Documentary Program",
2017-2018,P3,"2223450 Ontario Inc.",Toronto,Ontario,Canada,"Take Light",English,Documentary,2017-10-25,75000.00,75000.00,Contribution,"Theatrical Documentary Program",
2017-2018,P2,"Studio Couzin Inc.",Montreal,Quebec,Canada,"R�veuses de villes",French,Documentary,2017-07-25,125000.00,125000.00,Contribution,"Theatrical Documentary Program",
2017-2018,P2,"DAARR Inc.",Toronto,Ontario,Canada,"Death, Art & Rock'n'Roll",English,Documentary,2017-07-19,125000.00,125000.00,Investment,"Theatrical Documentary Program",
2017-2018,P4,"9257-8285 Qu�bec Inc",Quebec,Quebec,Canada,"Mad Dog & The Butcher, le film",French,Documentary,2018-03-28,100000.00,100000.00,Contribution,"Theatrical Documentary Program",
2017-2018,P2,"9207-6256 Qu�bec Inc.",Montreal,Quebec,Canada,"CASH NEXUS",French,Drama,2017-08-03,575000.00,575000.00,Contribution,"Production Program",
2017-2018,P4,"PCF Journey Le Film Inc.",Montreal,Quebec,Canada,"Gut Instinct",English,Mystery/Crime/Police,2018-02-19,2373972.00,2373972.00,Investment,"Production Program",
2017-2018,P4,"Goalie Productions Inc.",Toronto,Ontario,Canada,Goalie,English,Drama,2018-03-16,1797680.00,1797680.00,Investment,"Production Program",
2017-2018,P3,"Productions MFM Inc.",Montreal,Quebec,Canada,KUESSIPAN,French,Drama,2017-12-18,1135000.00,1135000.00,Investment,"Production Program",
2017-2018,P4,"Forum Films (Georges) Inc.",Montreal,Quebec,Canada,"Pauvre Georges !",French,Drama,2018-02-26,300000.00,300000.00,Investment,"Production Program",
2017-2018,P1,"Withdrawn Film Inc.",Toronto,Ontario,Canada,Withdrawn,English,Drama,2017-04-04,5000.00,5000.00,Contribution,"International Marketing Program",
2017-2018,P2,"9353-5284 Qu�bec Inc.",Montreal,Quebec,Canada,"Dans la brume",French,"Science fiction/Fantasy/Tale",2017-08-28,625840.00,625840.00,Investment,"Production Program",
2017-2018,P4,"Rhombus Possessor Inc.",Toronto,Ontario,Canada,Possessor,English,Drama,2018-03-28,3083876.00,3083876.00,Investment,"Production Program",
2017-2018,P2,"9297-9343 Qu�bec inc",Saint-F�licien,Quebec,Canada,Identit�s,French,Mystery/Crime/Police,2017-08-21,100000.00,100000.00,Contribution,"Production Program",
2017-2018,P3,"Film TDA inc.",Montreal,Quebec,Canada,"Le triomphe de l'argent",French,Mystery/Crime/Police,2017-10-06,2511500.00,2511500.00,Advance,"Production Program",
2017-2018,P2,"Les Productions Orange Films Inc.",Rosemere,Quebec,Canada,Innocent,French,Comedy,2017-08-23,167000.00,167000.00,Contribution,"Production Program",
2017-2018,P4,"Gunpowder & Sky Distribution LLC","New York","New York","United States","Below Her Mouth",English,Drama,2018-01-09,28500.00,28500.00,Contribution,"Export Assistance Program",
2017-2018,P4,"SPF (Songs) Productions Inc.",Toronto,Ontario,Canada,"Song of Names",English,Drama,2018-03-09,7000000.00,7000000.00,Investment,"Production Program",
2017-2018,P3,"DCTV Tulips Productions Inc.",Toronto,Ontario,Canada,"Tulips, Love, Honour and a Bike",English,Drama,2017-12-15,430000.00,430000.00,Investment,"Production Program",
2017-2018,P3,"Films S�ville Inc. (Les)",Montreal,Quebec,Canada,"Initiative iTunes - Canada 150 (Films S�ville)",,,2017-12-22,187591.00,187591.00,Contribution,"Promotion Program",
2017-2018,P3,"Ka�bou Production Pachamama Inc.",Montreal,Quebec,Canada,PACHAMAMA,French,Action/Adventure,2017-12-05,225000.00,225000.00,Advance,"Production Program",
2017-2018,P1,"The Lakehouse Movie Inc.",Thornhill,Ontario,Canada,"A Swingers Weekend",English,Comedy,2017-06-28,64315.00,64315.00,Investment,"Production Program",
2017-2018,P2,"Not A Bad Person Productions Inc.",Vancouver,"British Columbia",Canada,"I'm Not A Bad Person",English,Drama,2017-08-29,450000.00,450000.00,Investment,"Production Program",
2017-2018,P4,"Not A Bad Person Productions Inc.",Vancouver,"British Columbia",Canada,"I'm Not A Bad Person",English,Drama,2018-02-01,500000.00,450000.00,Investment,"Production Program","Amended Contract Signed 29-Aug-2017"
2017-2018,P2,"Shaftesbury Carmilla Movie Inc.",Toronto,Ontario,Canada,"Carmilla: The Movie",English,"Science fiction/Fantasy/Tale",2017-07-20,250000.00,250000.00,Investment,"Production Program",
2017-2018,P1,"Code 8 Films Inc.",Toronto,Ontario,Canada,"Code 8",English,"Science fiction/Fantasy/Tale",2017-06-01,3000000.00,3000000.00,Investment,"Production Program",
2017-2018,P2,"Microclimat Films inc.",Montreal,Quebec,Canada,"The Seven Last Words",English,Musical,2017-07-20,100000.00,100000.00,Contribution,"Production Program",
2017-2018,P1,"10108316 Canada Inc.",Montreal,Quebec,Canada,"Troisi�mes Noces",French,Comedy,2017-06-15,435000.00,435000.00,Investment,"Production Program",
2017-2018,P1,"Funfilm Distribution Inc.",Montreal,Quebec,Canada,"Initiative iTunes - Canada 150 ( Funfilms Distribution)",,,2017-05-17,1778.00,1778.00,Contribution,"Promotion Program",
2017-2018,P2,"Groupe TVA inc. (Faisant affaires sous le nom de TVA Films)",Montreal,Quebec,Canada,"Initiative iTunes - Canada 150 (TVA films)",,,2017-07-13,6500.00,6500.00,Contribution,"Promotion Program",
2017-2018,P1,"Mythic Productions Inc.","Richmond Hill",Ontario,Canada,"Kiss and Cry",English,Drama,2017-04-18,1500.00,1500.00,Contribution,"International Marketing Program",
2017-2018,P4,"Go Films L.P.R.S. Inc.",Montreal,Quebec,Canada,"Sympathie pour le Diable",French,Drama,2018-03-13,200000.00,200000.00,Investment,"Production Program",
2017-2018,P2,"P�riph�ria Productions Inc.",Montreal,Quebec,Canada,Lemonade,English,Drama,2017-08-21,200000.00,200000.00,Investment,"Production Program",
2017-2018,P1,"9338-0145 Qu�bec Inc.",Montreal,Quebec,Canada,"Song of Granite",English,Drama,2017-04-21,1500.00,1500.00,Contribution,"International Marketing Program",
2017-2018,P1,"Grey House Films",Toronto,Ontario,Canada,"Shooting War",English,Documentary,2017-05-03,1500.00,1500.00,Contribution,"International Marketing Program",
2017-2018,P4,"CarpeDiem Film & TV Inc.",Montreal,Quebec,Canada,"La Course des Tuques / Snowtime! 2",French,Comedy,2018-01-23,0.00,215834.00,Advance,"Production Program","Amended Contract Signed 27-Mar-2017"
2017-2018,P4,"CarpeDiem Film & TV Inc.",Montreal,Quebec,Canada,"La Course des Tuques / Snowtime! 2",French,Comedy,2018-01-23,215834.00,0.00,Investment,"Production Program","Amended Contract Signed 27-Mar-2017"
2017-2018,P4,"Carkner Films Inc.",Vancouver,"British Columbia",Canada,Kingsway,English,"Romantic Comedy",2018-03-21,75000.00,75000.00,Investment,"Production Program",
2017-2018,P1,"REMSTAR FILMS INC.",Montreal,Quebec,Canada,"Initiative iTunes - Canada 150 (Remstar films)",,,2017-06-13,5733.00,5733.00,Contribution,"Promotion Program",
2017-2018,P3,"REMSTAR FILMS INC.",Montreal,Quebec,Canada,"Initiative iTunes - Canada 150 (Remstar films)",,,2017-12-21,6638.00,5733.00,Contribution,"Promotion Program","Amended Contract Signed 13-Jun-2017"
2017-2018,P1,"Brainstorm Media","Beverly Hills",California,"United States","Other Half (The)",English,Drama,2017-04-07,28500.00,28500.00,Contribution,"Export Assistance Program",
2017-2018,P2,"Historic Homes Pictures Inc.",Toronto,Ontario,Canada,"Historic Homes of the Future",English,"Historical Drama",2017-09-14,150000.00,150000.00,Investment,"Production Program",
2017-2018,P1,"Mongrel Media Inc.",Toronto,Ontario,Canada,"Initiative iTunes - Canada 150 (Mongrel Media Inc.)",,,2017-06-15,10608.00,10608.00,Contribution,"Promotion Program",
2017-2018,P2,"L16 MSF Inc.",Toronto,Ontario,Canada,"Level 16",English,Thriller,2017-09-21,350000.00,350000.00,Investment,"Production Program",
2017-2018,P1,"Grassfire Films Inc.","New Waterford","Nova Scotia",Canada,Werewolf,English,Drama,2017-06-30,1500.00,1500.00,Contribution,"International Marketing Program",
2017-2018,P1,"Rezolution Pictures International Inc.",Outremont,Quebec,Canada,"Rumble: The Indians Who Rocked The World",English,Documentary,2017-04-21,1000.00,1000.00,Contribution,"International Marketing Program",
2017-2018,P1,"Production Deux nuits Inc.",Montreal,Quebec,Canada,1:54,French,Drama,2017-04-06,1000.00,1000.00,Contribution,"International Marketing Program",
2017-2018,P3,"The Competition Productions Inc.",Toronto,Ontario,Canada,"Competition (The)",English,Drama,2017-11-30,400000.00,400000.00,Investment,"Production Program",
2017-2018,P3,"2362231 Ontario Inc.",Toronto,Ontario,Canada,"HERO - Inspired By The Life and Times of Ulric Cross",English,"Historical Drama",2017-11-10,70000.00,70000.00,Contribution,"Production Program",
2017-2018,P3,"8314136 Canada Inc.",Charlottetown,"Prince Edward Island",Canada,"Pogey Beach",English,Comedy,2017-11-28,41500.00,41500.00,Contribution,"Production Program",
2017-2018,P1,"Accompany Productions Inc.",Yellowknife,"North West Territories",Canada,"Sun At Midnight (The)",English,Action/Adventure,2017-04-12,1500.00,1500.00,Contribution,"International Marketing Program",
2017-2018,P1,"Clumsy Ophelia Productions Inc.",Toronto,Ontario,Canada,"Dim the Fluorescents",English,Comedy,2017-04-12,1500.00,1500.00,Contribution,"International Marketing Program",
2017-2018,P1,"9217-5959 Qu�bec Inc.",Montreal,Quebec,Canada,L'Amour,French,Drama,2017-06-08,500000.00,500000.00,Investment,"Production Program",
2017-2018,P3,"1037125 BC Ltd.",Masset,"British Columbia",Canada,"Edge of the Knife",English,Action/Adventure,2017-12-21,275000.00,275000.00,Investment,"Production Program",
2017-2018,P3,"Dreamland Productions Inc.",Vancouver,"British Columbia",Canada,Dreamland,English,Thriller,2017-12-19,1000000.00,1000000.00,Investment,"Production Program",
2017-2018,P4,"Blood Quantum inc",Montreal,Quebec,Canada,"Blood Quantum",English,Horror,2018-02-05,1700000.00,1700000.00,Investment,"Production Program",
2017-2018,P2,"9324-3160 Qu�bec Inc.",Montreal,Quebec,Canada,"Ceux qui font les r�volutions � moiti�, n'ont fait que se creuser un tombeau",French,Drama,2017-07-28,1000.00,1000.00,Contribution,"International Marketing Program",
2017-2018,P1,"Search Engine Films Inc.",Toronto,Ontario,Canada,"Sled Dogs",English,Documentary,2017-05-25,19181.00,19181.00,Advance,"Marketing Program",
2017-2018,P4,"RTR 2016 Ontario Inc.",Toronto,Ontario,Canada,"Secrets from the Russian Tea Room",English,Drama,2018-02-07,700000.00,700000.00,Investment,"Production Program",
2017-2018,P3,"Kayaking For Beginners Incorporated",Toronto,Ontario,Canada,"Kayaking For Beginners",English,Action/Adventure,2017-11-09,90000.00,90000.00,Investment,"Production Program",
2017-2018,P1,"Giant Little Ones Film Inc.",Toronto,Ontario,Canada,GLO,English,Drama,2017-06-23,900000.00,900000.00,Investment,"Production Program",
2017-2018,P4,"Bella Ciao Digital Incorporated",Vancouver,"British Columbia",Canada,"Bella Ciao!",English,Drama,2018-02-16,68600.00,68600.00,Contribution,"Production Program",
2017-2018,P1,"Hangman Justice Productions Inc.",Toronto,Ontario,Canada,"American Hangman",English,Thriller,2017-05-18,350000.00,350000.00,Investment,"Production Program",
2017-2018,P2,"Colonelle films inc.",Montreal,Quebec,Canada,"Une Colonie (AKA Pour toujours)",French,Drama,2017-08-15,500000.00,500000.00,Contribution,"Production Program",
2017-2018,P1,"A71 Entertainment Inc.",Toronto,Ontario,Canada,"An American Dream: The Education Of William Bowman",English,Comedy,2017-05-05,76000.00,76000.00,Advance,"Marketing Program",
2017-2018,P2,"Littlest Reindeer Productions Inc.",Toronto,Ontario,Canada,"Elliot the Littlest Reindeer",English,Action/Adventure,2017-09-11,1393000.00,1393000.00,Investment,"Production Program",
2017-2018,P2,"Maison 4:3 Inc.",Montreal,Quebec,Canada,"Commun des mortels (Le)",French,Documentary,2017-09-13,8000.00,8000.00,Advance,"Marketing Program",
2017-2018,P2,"The Space Between Productions Inc.",Oakville,Ontario,Canada,"The Space Between",English,Comedy,2017-08-22,30000.00,30000.00,Advance,"Marketing Program",
2017-2018,P1,"Second Chance Productions Inc.","West Vancouver","British Columbia",Canada,"Grand Unified Theory",English,Comedy,2017-06-13,25000.00,25000.00,Advance,"Marketing Program",
2017-2018,P1,"Raven Banner Releasing Inc.",Toronto,Ontario,Canada,"The Unseen",English,Thriller,2017-06-30,89925.00,89925.00,Advance,"Marketing Program",
2017-2018,P2,"Raven Banner Releasing Inc.",Toronto,Ontario,Canada,"Lost Solace",English,Thriller,2017-07-05,47270.00,47270.00,Advance,"Marketing Program",
2017-2018,P1,"Love Jacked Productions Inc.",Toronto,Ontario,Canada," Love Jacked",English,"Romantic Comedy",2017-06-27,1300000.00,1300000.00,Investment,"Production Program",
2017-2018,P2,"Funfilm Distribution Inc.",Montreal,Quebec,Canada,"LA PETITE FILLE QUI AIMAIT TROP LES ALLUMETTES",French,Drama,2017-09-19,16500.00,16500.00,Advance,"Marketing Program",
2017-2018,P3,"Funfilm Distribution Inc.",Montreal,Quebec,Canada,"LA PETITE FILLE QUI AIMAIT TROP LES ALLUMETTES",French,Drama,2017-12-05,35500.00,16500.00,Advance,"Marketing Program","Amended Contract Signed 19-Sep-2017"
2017-2018,P3,"WTSF Films Inc.",Vancouver,"British Columbia",Canada,"WHEN THE STORM FADES",English,Drama,2017-10-04,66120.00,66120.00,Contribution,"Production Program",
2017-2018,P1,"Raven Banner Releasing Inc.",Toronto,Ontario,Canada,"Blood Honey (AKA The Hive, AKA The Bequest)",English,Thriller,2017-06-29,47435.00,47435.00,Advance,"Marketing Program",
2017-2018,P2,"1961846 Ontario Inc.",Toronto,Ontario,Canada,"Nobody Famous",English,Comedy,2017-08-22,50000.00,50000.00,Contribution,"Production Program",
2017-2018,P3,"Sivumu Northern Productions Inc.",Iqaluit,Nunavut,Canada,"Ababa and Pingua",English,Action/Adventure,2017-12-05,170000.00,170000.00,Contribution,"Production Program",
2017-2018,P3,"9364-4680 Qu�bec Inc.",Montreal,Quebec,Canada,Gold,French,Drama,2017-10-03,400000.00,400000.00,Contribution,"Production Program",
2017-2018,P4,"9364-4680 Qu�bec Inc.",Montreal,Quebec,Canada,Gold,French,Drama,2018-03-21,430000.00,400000.00,Contribution,"Production Program","Amended Contract Signed 03-Oct-2017"
2017-2018,P3,"CUT/OFF/TAIL Pictures Inc.","West Pennant","Nova Scotia",Canada,"The Crescent",English,Thriller,2017-11-17,50000.00,50000.00,Contribution,"Production Program",
2017-2018,P1,"AMF Productions Inc.",Vancouver,"British Columbia",Canada,"Window Horses",English,Drama,2017-05-30,1500.00,1500.00,Contribution,"International Marketing Program",
2017-2018,P4,"Noel en boite Inc.",Ottawa,Ontario,Canada,"No�l en bo�te",French,Comedy,2018-03-20,500000.00,500000.00,Investment,"Production Program",
2017-2018,P4,"Kingulliit Productions Inc.",Igloolik,Nunavut,Canada,"One Day in the Life of  Noah Piugattuk",English,"Historical Drama",2018-03-13,293500.00,293500.00,Contribution,"Production Program",
2017-2018,P2,"Conciliatory Pictures Inc.",Halifax,"Nova Scotia",Canada,Splinters,English,Drama,2017-07-29,490000.00,490000.00,Contribution,"Production Program",
2017-2018,P2,"Man Running Ltd.",Calgary,Alberta,Canada,"Man Running",English,Drama,2017-09-20,375000.00,375000.00,Contribution,"Production Program",
2017-2018,P1,"A71 Entertainment Inc.",Toronto,Ontario,Canada,"Population Zero",English,Mystery/Crime/Police,2017-06-29,40000.00,40000.00,Advance,"Marketing Program",
2017-2018,P4,"13 Miles Productions Ltd.",Burnaby,"British Columbia",Canada,"13 Miles",English,Drama,2018-03-19,50000.00,50000.00,Contribution,"Production Program",
2017-2018,P4,"Motion 58 Entertainment Inc.",Vancouver,"British Columbia",Canada,Monoceros,English,"Science fiction/Fantasy/Tale",2018-03-27,500000.00,500000.00,Investment,"Production Program",
2017-2018,P4,"The Rest of Us Inc.",Toronto,Ontario,Canada,"The Rest Of Us",English,Drama,2018-03-23,425000.00,425000.00,Investment,"Production Program",
2017-2018,P4,"Les Productions du Moment Inc.",Saint-Basile-le-Grand,Quebec,Canada,"Le sucre naturel de la peau",French,Drama,2018-01-11,150000.00,150000.00,Contribution,"Production Program",
2017-2018,P3,"2486694 Ontario Ltd. (dba Next Productions)",Pickering,Ontario,Canada,Roobha,English,Drama,2017-10-16,53911.00,53911.00,Contribution,"Production Program",
2017-2018,P4,"Black Conflux Productions NL Inc.",St-John's,Newfoundland/Labrador,Canada,"Black Conflux",English,Drama,2018-03-28,400000.00,400000.00,Contribution,"Production Program",
2017-2018,P4,"Sea Green Pictures Inc.",Halifax,"Nova Scotia",Canada,Spinster,English,Drama,2018-02-28,500000.00,500000.00,Contribution,"Production Program",
2017-2018,P4,"10614726 Canada Inc.",Gatineau,Quebec,Canada,"Rustic Oracle",English,Drama,2018-03-22,500000.00,500000.00,Contribution,"Production Program",
2017-2018,P4,"KMLT Productions Inc.",Vancouver,"British Columbia",Canada,"""The Body Remembers When The World Broke Open (aka """"Stay"""")""",English,Drama,2018-03-16,500000.00,500000.00,Investment,"Production Program",
2017-2018,P1,"Mongrel Media Inc.",Toronto,Ontario,Canada,"Mobile Homes",English,Drama,2017-06-26,24200.00,24200.00,Contribution,"International Marketing Program",
2017-2018,P4,"Voyelles Films Productions inc.",Montreal,Quebec,Canada,"Sin La Habana",English,Drama,2018-03-23,450000.00,450000.00,Contribution,"Production Program",
2017-2018,P3,"Possibles M�dia II Inc.",Montreal,Quebec,Canada,"Le Suicide d'Emma Peeters",French,Comedy,2017-11-20,150000.00,150000.00,Contribution,"Production Program",
2017-2018,P4,"Sara Fost Pictures Inc.",St-John's,Newfoundland/Labrador,Canada,Hammer,English,Thriller,2018-03-28,500000.00,500000.00,Investment,"Production Program",
2017-2018,P3,"Come True Productions Inc.",Toronto,Ontario,Canada,"COME TRUE",English,Thriller,2017-10-17,215000.00,215000.00,Investment,"Production Program",
2017-2018,P4,"Rebirth Films Incorporated",Dartmouth,"Nova Scotia",Canada,"REBIRTH 8:37",English,Thriller,2018-02-27,418562.00,418562.00,Contribution,"Production Program",
2017-2018,P3,"Iylond Entertainment Inc.",Okotoks,Alberta,Canada,"Ice Blue",English,Thriller,2017-10-19,59000.00,59000.00,Investment,"Production Program",
2017-2018,P3,"The Road Back Productions Inc.",Toronto,Ontario,Canada,Natalie,English,Drama,2017-12-15,300000.00,300000.00,Investment,"Production Program",
2017-2018,P4,"Fluent Films (PULSE) Inc.",Montreal,Quebec,Canada,"The Day Between",English,Drama,2018-03-16,450000.00,450000.00,Contribution,"Production Program",
2017-2018,P4,"Falls Around Her Films Inc.",Toronto,Ontario,Canada,"Falls Around Her",English,Thriller,2018-03-12,400000.00,400000.00,Investment,"Production Program",
2017-2018,P3,"2003090 Alberta Ltd.",Calgary,Alberta,Canada,Knuckleball,English,Thriller,2017-10-19,75000.00,75000.00,Contribution,"Production Program",
2017-2018,P4,"9118-9522 Qu�bec Inc.",Hampstead,Quebec,Canada,"""SEDNA, """"EMPRESS OF THE SEA""""""",English,Drama,2018-02-13,500000.00,500000.00,Investment,"Production Program",
2017-2018,P4,"Zhoh Daatsik Pictures Inc.","Galiano Island","British Columbia",Canada,"Red Snow",English,Drama,2018-02-14,500000.00,500000.00,Investment,"Production Program",
2017-2018,P4,"The Cuban Movie Inc.",Toronto,Ontario,Canada,"The Cuban",English,Drama,2018-03-26,437821.00,437821.00,Investment,"Production Program",
2017-2018,P2,"CDP Production Ltd.",Winnipeg,Manitoba,Canada,"The Corruption Of Divine Providence",English,Drama,2017-09-22,500000.00,500000.00,Investment,"Production Program",
2017-2018,P4,"2574393 Ontario Inc.",Brantford,Ontario,Canada,"The Incredible 25th Year of Mitzi Bearclaw",English,Comedy,2018-03-21,500000.00,500000.00,Investment,"Production Program",
2017-2018,P2,"1459479 Alberta Inc. dba Raging River Productions",Calgary,Alberta,Canada,"April In Autumn",English,Drama,2017-08-09,60000.00,60000.00,Investment,"Production Program",
2017-2018,P4,"1459479 Alberta Inc. dba Raging River Productions",Calgary,Alberta,Canada,"April In Autumn",English,Drama,2018-01-12,76500.00,60000.00,Investment,"Production Program","Amended Contract Signed 09-Aug-2017"
2017-2018,P4,"Red Eye Productions Inc.",Calgary,Alberta,Canada,"Red Eye",English,"Science fiction/Fantasy/Tale",2018-03-27,500000.00,500000.00,Contribution,"Production Program",
2017-2018,P1,"9334-5163 Qu�bec inc.",Alma,Quebec,Canada,"Cr�me de menthe",French,Comedy,2017-05-12,1700.00,1700.00,Contribution,"International Marketing Program",
2017-2018,P1,"Hamilton-Mehta Productions Inc.",Toronto,Ontario,Canada,"Anatomy of Violence",English,Drama,2017-06-12,125000.00,125000.00,Investment,"Production Program",
2017-2018,P2,"Productions du Rapide-Blanc Inc. (Les)",Montreal,Quebec,Canada,"Qu�bec My Country Mon Pays",French,Documentary,2017-08-04,14000.00,14000.00,Advance,"Marketing Program",
2017-2018,P1,"9097-4767 Qu�bec Inc.",Montreal,Quebec,Canada,"Cyclotron (Le)",French,"Science fiction/Fantasy/Tale",2017-06-22,1000.00,1000.00,Contribution,"International Marketing Program",
2017-2018,P1,"Mad Samurai Productions Inc.",Richmond,"British Columbia",Canada,Juggernaut,English,Mystery/Crime/Police,2017-06-06,2700.00,2700.00,Contribution,"International Marketing Program",
2017-2018,P2,"Arabesque Films",Montreal,Quebec,Canada,"Le dernier souffle",French,Documentary,2017-07-06,1000.00,1000.00,Contribution,"International Marketing Program",
2017-2018,P1,"Euclid 431 Pictures Inc.",Toronto,Ontario,Canada,GLO,English,Drama,2017-06-01,100000.00,100000.00,Advance,"Production Program",
2017-2018,P2,"Euclid 431 Pictures Inc.",Toronto,Ontario,Canada,GLO,English,Drama,2017-09-13,0.00,100000.00,Advance,"Production Program","Amended Contract Signed 01-Jun-2017"
2017-2018,P2,"Euclid 431 Pictures Inc.",Toronto,Ontario,Canada,GLO,English,Drama,2017-09-13,100000.00,0.00,Investment,"Production Program","Amended Contract Signed 01-Jun-2017"
2017-2018,P4,"Malefic Films Inc.",Halifax,"Nova Scotia",Canada,"Child Remains (The)",English,Horror,2018-03-22,700.00,700.00,Contribution,"International Marketing Program",
2017-2018,P2,"Festival de Cin�ma de la Ville de Qu�bec",Quebec,Quebec,Canada,"Festival de cin�ma de la ville de Qu�bec 2017",,,2017-07-14,50204.00,50204.00,Contribution,"Promotion Program",
2017-2018,P2,"Festival de Cin�ma de la Ville de Qu�bec",Quebec,Quebec,Canada,"Quebec anglophone film tour",,,2017-07-14,15000.00,15000.00,Contribution,"Promotion Program",
2017-2018,P2,"Interactive Ontario Industry Association",Toronto,Ontario,Canada,"iVentures 2017 (Formerly GameON: Ventures)",,,2017-07-10,20000.00,20000.00,Contribution,"Promotion Program",
2017-2018,P2,"Short Stop Pictures X Ltd.",Halifax,"Nova Scotia",Canada,"Short Film Face Off 2017",,,2017-08-23,45500.00,45500.00,Contribution,"Promotion Program",
2017-2018,P2,"Pacific Northwest Pictures Inc.",Vancouver,"British Columbia",Canada,DRONE,English,Thriller,2017-09-25,17993.00,17993.00,Advance,"Marketing Program",
2017-2018,P2,"Writers Guild Of Canada",Toronto,Ontario,Canada,"2017 WGC Canadian Screenwriting Awards",,,2017-07-26,1000.00,1000.00,Contribution,"Promotion Program",
2017-2018,P1,"ReelWorld Film Festival Inc.",Toronto,Ontario,Canada,"Reelworld Film Festival and Impact Lounge",,,2017-06-14,43021.00,43021.00,Contribution,"Promotion Program",
2017-2018,P1,"Atlantic Film Festival Association",Halifax,"Nova Scotia",Canada,"Atlantic Film Festival - Strategic Partners",,,2017-06-12,182631.00,182631.00,Contribution,"Promotion Program",
2017-2018,P1,"Cin�fest: The Sudbury Film Festival Inc.",Sudbury,Ontario,Canada,"Cinefest Sudbury International Film Festival",,,2017-06-15,59483.00,59483.00,Contribution,"Promotion Program",
2017-2018,P1,"Savath Pictures Inc.",Vancouver,"British Columbia",Canada,"Hollow In The Land",English,Thriller,2017-06-08,4000.00,4000.00,Contribution,"International Marketing Program",
2017-2018,P2,"Kingston Canadian Film Festival",Kingston,Ontario,Canada,"2018 Kingston Canadian Film Festival",,,2017-07-04,3245.00,3245.00,Contribution,"Promotion Program",
2017-2018,P2,"Prince Edward Island Film, Food, & Idea Festival, Inc.",Charlottetown,"Prince Edward Island",Canada,"Prince Edward Island Film, Food, & Idea Festival",,,2017-07-10,5000.00,5000.00,Contribution,"Promotion Program",
2017-2018,P2,"The Centre for Aboriginal Media (Ontario)",Toronto,Ontario,Canada,"imagineNATIVE Film + Media Arts Festival",,,2017-07-10,36223.00,36223.00,Contribution,"Promotion Program",
2017-2018,P2,"R�alisatrices �quitables",Montreal,Quebec,Canada,"Dames des vues (Les)",,,2017-08-11,35000.00,35000.00,Contribution,"Promotion Program",
2017-2018,P3,"Riot Girls Film Inc.",Toronto,Ontario,Canada,"Riot Girls",English,"Science fiction/Fantasy/Tale",2017-10-06,1108546.00,1108546.00,Investment,"Production Program",
2017-2018,P2,"9360-1953 Quebec inc.",Montreal,Quebec,Canada,"QUAND L'AMOUR SE CREUSE UN TROU",French,"Romantic Comedy",2017-07-10,127500.00,127500.00,Contribution,"Micro-Budget Production Program",
2017-2018,P2,"Maestro Films Inc.",Montreal,Quebec,Canada,"Miranda ?",French,Documentary,2017-07-21,127500.00,127500.00,Contribution,"Micro-Budget Production Program",
2017-2018,P2,"Groupe �volum�dia inc.",Montreal,Quebec,Canada,"Bient�t sur nos �crans / Coming to your Screens",,,2017-07-12,10000.00,10000.00,Contribution,"Promotion Program",
2017-2018,P2,"PHI Centre Inc.",Montreal,Quebec,Canada,"M�moire num�rique",,,2017-08-03,10000.00,10000.00,Contribution,"Promotion Program",
2017-2018,P2,"696263 NB Inc.",Moncton,"New Brunswick",Canada,"Pour mieux t'aimer",French,Drama,2017-07-06,127500.00,127500.00,Contribution,"Micro-Budget Production Program",
2017-2018,P1,"FIRST WEEKEND CLUB FILM SOCIETY","North Vancouver","British Columbia",Canada,"First Weekend Club",,,2017-06-23,118350.00,118350.00,Contribution,"Promotion Program",
2017-2018,P3,"Hamilton-Mehta Productions Inc.",Toronto,Ontario,Canada,"Anatomy of Violence",English,Drama,2017-10-11,50000.00,50000.00,Advance,"Marketing Program",
2017-2018,P1,"Gimli Film Festival Inc.",Gimli,Manitoba,Canada,"Gimli Film Festival",,,2017-06-27,16223.00,16223.00,Contribution,"Promotion Program",
2017-2018,P2,"Bee Good Films Inc.",Whitehorse,Yukon,Canada,"How to Bee",English,Documentary,2017-08-16,127500.00,127500.00,Contribution,"Micro-Budget Production Program",
2017-2018,P2,"Greater Vancouver International Film Festival Society",Vancouver,"British Columbia",Canada,"Vancouver International Film Festival",,,2017-07-24,242172.00,242172.00,Contribution,"Promotion Program",
2017-2018,P4,"Films Christal, s.e.c.(Les)",Montreal,Quebec,Canada,"Junior Majeur",French,Drama,2018-03-23,576257.00,576257.00,Advance,"Marketing Program",
2017-2018,P1,"St. John's International Women's Film Festival, Inc.","St. John's",Newfoundland/Labrador,Canada,"St. John's International Women's Film Festival",,,2017-06-14,28260.00,28260.00,Contribution,"Promotion Program",
2017-2018,P2,"T�l�fiction Distribution et Marketing Inc.",Montreal,Quebec,Canada,"Rois mongols (Les)",French,Drama,2017-09-11,317613.00,317613.00,Advance,"Marketing Program",
2017-2018,P1,"Fondation Qu�bec cin�ma",Montreal,Quebec,Canada,"Gala du cin�ma qu�b�cois, Tourn�e et Rendez-vous du cin�ma",,,2017-06-28,302144.00,302144.00,Contribution,"Promotion Program",
2017-2018,P3,"Fondation Qu�bec cin�ma",Montreal,Quebec,Canada,"Gala du cin�ma qu�b�cois, Tourn�e et Rendez-vous du cin�ma",,,2017-12-06,502144.00,302144.00,Contribution,"Promotion Program","Amended Contract Signed 28-Jun-2017"
2017-2018,P2,"9338-6233 Qu�bec Inc.",Montreal,Quebec,Canada,"Ta peau si lisse",French,Documentary,2017-07-28,10000.00,10000.00,Contribution,"International Marketing Program",
2017-2018,P1,"Open Roof Films Entertainment Inc.",Toronto,Ontario,Canada,"Open Roof Festival",,,2017-06-15,20000.00,20000.00,Contribution,"Promotion Program",
2017-2018,P2,"EMA FILMS INC.",Montreal,Quebec,Canada,"Coproduction market - no specific project",English,,2017-07-28,1000.00,1000.00,Contribution,"International Marketing Program",
2017-2018,P2,"Women In Film & Television Toronto",Toronto,Ontario,Canada,"WIFT-T Membership Mentorship Program (renamed WIFT Connect)",,,2017-07-04,20000.00,20000.00,Contribution,"Promotion Program",
2017-2018,P3,"7585421 MANITOBA INC.",Winnipeg,Manitoba,Canada,Homecoming,English,Horror,2017-12-21,127500.00,127500.00,Contribution,"Micro-Budget Production Program",
2017-2018,P4,"696276 NB Inc.",Fredericton,"New Brunswick",Canada,Entropic,English,Drama,2018-02-16,127500.00,127500.00,Contribution,"Micro-Budget Production Program",
2017-2018,P2,"Course Estrie",Sherbrooke,Quebec,Canada,"Course des R�gions pancanadienne",,,2017-08-18,40000.00,40000.00,Contribution,"Promotion Program",
2017-2018,P2,"9361-6324 Qu�bec Inc.",Montreal,Quebec,Canada,R�servoir,French,Drama,2017-07-20,127500.00,127500.00,Contribution,"Micro-Budget Production Program",
2017-2018,P3,"Microscope Inc.",Montreal,Quebec,Canada,"Les chaouins",French,Drama,2017-10-19,1135000.00,1135000.00,Investment,"Production Program",
2017-2018,P4,"Fall Back Down Productions Inc.",Vancouver,"British Columbia",Canada,"FALL BACK DOWN",English,"Romantic Comedy",2018-02-16,127252.00,127252.00,Contribution,"Micro-Budget Production Program",
2017-2018,P3,"CLEAR SHOT FILMS INC.",Schomberg,Ontario,Canada,Honeymoon,English,Thriller,2017-12-19,127500.00,127500.00,Contribution,"Micro-Budget Production Program",
2017-2018,P4,"Films S�ville Inc. (Les)",Montreal,Quebec,Canada,"Un sac de billes",French,Drama,2018-03-23,88416.00,88416.00,Advance,"Marketing Program",
2017-2018,P4,"Pass Through Productions Inc.","North Vancouver","British Columbia",Canada,"Pass Through",English,Drama,2018-02-16,127500.00,127500.00,Contribution,"Micro-Budget Production Program",
2017-2018,P4,"Scattered and Small Pictures Inc.","St. John's",Newfoundland/Labrador,Canada,"Scattered and Small",English,Drama,2018-03-13,127500.00,127500.00,Contribution,"Micro-Budget Production Program",
2017-2018,P1,"Academy Of Canadian Cinema And Television - Acad�mie Canadienne du Cin�ma et de la T�l�vision",Toronto,Ontario,Canada,"Canadian Screen Awards",,,2017-06-27,360511.00,360511.00,Contribution,"Promotion Program",
2017-2018,P2,"Academy Of Canadian Cinema And Television - Acad�mie Canadienne du Cin�ma et de la T�l�vision",Toronto,Ontario,Canada,"Academy Members Lounge, Canadian Screen Awards",,,2017-07-18,37500.00,37500.00,Contribution,"Promotion Program",
2017-2018,P2,"Rococoeur Inc",Montreal,Quebec,Canada,Gratteux,French,Comedy,2017-09-05,127500.00,127500.00,Contribution,"Micro-Budget Production Program",
2017-2018,P3,"Tokens On Call Productions Inc.",Cobourg,Ontario,Canada,Tokens,English,Comedy,2017-10-30,97500.00,97500.00,Contribution,"Micro-Budget Production Program",
2017-2018,P3,"DELLA AND GOLIATH PRODUCTIONS INC.",Edmonton,Alberta,Canada,"Della & Goliath",English,Documentary,2017-11-08,127500.00,127500.00,Contribution,"Micro-Budget Production Program",
2017-2018,P3," 10236985 Canada Inc.",Charlottetown,"Prince Edward Island",Canada,"Wharf Rats",English,Comedy,2017-10-24,127500.00,127500.00,Contribution,"Micro-Budget Production Program",
2017-2018,P3,"Red Jade Productions Incorporated",Regina,Saskatchewan,Canada,"The Warden",English,Drama,2017-12-21,30000.00,30000.00,Contribution,"Micro-Budget Production Program",
2017-2018,P4,"2583035 ONTARIO INC.",Toronto,Ontario,Canada,P6HUT,English,Drama,2018-01-02,127500.00,127500.00,Contribution,"Micro-Budget Production Program",
2017-2018,P2,"Female Eye Film Festival (The)",Woodbridge,Ontario,Canada,"The Female Eye Film Festival",,,2017-08-31,5000.00,5000.00,Contribution,"Promotion Program",
2017-2018,P2,"Canadian Film in the Schools",Toronto,Ontario,Canada,"Canadian Film in the Schools  + National Canadian Film Day",,,2017-07-07,154113.00,154113.00,Contribution,"Promotion Program",
2017-2018,P1,"Calgary International Film Festival Society",Calgary,Alberta,Canada,"Calgary International Film Festival",,,2017-06-26,27038.00,27038.00,Contribution,"Promotion Program",
2017-2018,P4,"Strand Releasing","Culver City",California,"United States","Skyjacker's Tale (The)",English,Documentary,2018-03-20,15500.00,15500.00,Contribution,"Export Assistance Program",
2017-2018,P2,"Brunico Communications Ltd.",Toronto,Ontario,Canada,"Banff World Media Festival",,,2017-07-24,99000.00,99000.00,Contribution,"Promotion Program",
2017-2018,P2,"Carrousel international du film de Rimouski (Le)",Rimouski,Quebec,Canada,"Carrousel international du film de Rimouski",,,2017-08-31,25152.00,25152.00,Contribution,"Promotion Program",
2017-2018,P2,"N5 Pictures Inc.",Mississauga,Ontario,Canada,"Coproduction market - no specific project",English,,2017-08-17,1000.00,1000.00,Contribution,"International Marketing Program",
2017-2018,P1,"Woods Entertainment Canada Inc.",Toronto,Ontario,Canada,"King Tide",English,,2017-06-27,1500.00,1500.00,Contribution,"International Marketing Program",
2017-2018,P3,"Earthlings Productions Inc.",Montreal,Quebec,Canada,"The Hummingbird Project",English,Action/Adventure,2017-11-03,3250000.00,3250000.00,Advance,"Production Program",
2017-2018,P2,"New Brunswick Filmmakers Co-operative Limited",Fredericton,"New Brunswick",Canada,"Silver Wave Film Festival",,,2017-07-06,3000.00,3000.00,Contribution,"Promotion Program",
2017-2018,P2,"Edmonton International Film Festival Society",Edmonton,Alberta,Canada,"Edmonton International Film Festival (EIFF)",,,2017-07-24,26170.00,26170.00,Contribution,"Promotion Program",
2017-2018,P2,"The Vancouver Out On Screen Film and Video Society",Vancouver,"British Columbia",Canada,"The Vancouver Queer Film Festival",,,2017-08-14,5000.00,5000.00,Contribution,"Promotion Program",
2017-2018,P2,"Productions Sc�nat de L'Abitibi-Temiscamingue",Rouyn-Noranda,Quebec,Canada,"Festival du cin�ma international en Abitibi-T�miscamingue",,,2017-08-03,62082.00,62082.00,Contribution,"Promotion Program",
2017-2018,P2,"Festival Chromatic",Montreal,Quebec,Canada,"Festival Chromatic / Volet Chromatic Pro",,,2017-09-27,15000.00,15000.00,Contribution,"Promotion Program",
2017-2018,P2,"Cin�math�que Qu�b�coise",Montreal,Quebec,Canada,"Sommets du cinema d'animation (Les)",,,2017-08-15,10000.00,10000.00,Contribution,"Promotion Program",
2017-2018,P2,"Lowenbe Holdings Ltd.","Glen Haven","Nova Scotia",Canada,"Trans Atlantic Partners",,,2017-07-07,25000.00,25000.00,Contribution,"Promotion Program",
2017-2018,P2,"9324-3160 Qu�bec Inc.",Montreal,Quebec,Canada,"Ceux qui font les r�volutions � moiti�, n'ont fait que se creuser un tombeau",French,Drama,2017-07-28,1000.00,1000.00,Contribution,"International Marketing Program",
2017-2018,P2,"The Quebec English-Language Production Council (QEPC)",Montreal,Quebec,Canada,"QEPC Canadian Regional Production Monitoring Report",,,2017-08-16,10000.00,10000.00,Contribution,"Promotion Program",
2017-2018,P2,"Motion 58 Entertainment Inc.",Vancouver,"British Columbia",Canada,"Cage the Fallen",English,Thriller,2017-07-05,15000.00,15000.00,Advance,"Development Program",
2017-2018,P2,"Independent Edge Films Inc.",Vancouver,"British Columbia",Canada,"Door Mouse",English,Thriller,2017-07-26,15000.00,15000.00,Advance,"Development Program",
2017-2018,P2,"9151-1766 Qu�bec Inc.",Montreal,Quebec,Canada,"Le lys, l'�rable et le jasmin (titre provisoire)",French,Drama,2017-07-11,15000.00,15000.00,Advance,"Development Program",
2017-2018,P3,"The Centre for Aboriginal Media (Ontario)",Toronto,Ontario,Canada,"On-Screen Protocols and Pathways",,,2017-12-19,25000.00,25000.00,Contribution,"Promotion Program",
2017-2018,P2,"Banana-Moon Sky Films Inc.",Toronto,Ontario,Canada,"Feels Like You",English,"Science fiction/Fantasy/Tale",2017-07-07,15000.00,15000.00,Advance,"Development Program",
2017-2018,P2,"Raven West Films Ltd.",Vancouver,"British Columbia",Canada,"Immigration Game",English,Thriller,2017-07-06,15000.00,15000.00,Advance,"Development Program",
2017-2018,P3,"Art et Essai Administration Inc.",Montreal,Quebec,Canada,"Plume Rouge",French,"Science fiction/Fantasy/Tale",2017-10-16,15000.00,15000.00,Advance,"Development Program",
2017-2018,P3,"Art et Essai Administration Inc.",Montreal,Quebec,Canada,"Fake Empire",French,Thriller,2017-10-16,15000.00,15000.00,Advance,"Development Program",
2017-2018,P2,"Original Pictures Inc.",Winnipeg,Manitoba,Canada,"Innercity Girl Like Me",English,Drama,2017-07-25,15000.00,15000.00,Advance,"Development Program",
2017-2018,P2,"Joker Films Productions Inc.","North Vancouver","British Columbia",Canada,"Buckley's Chance",English,Drama,2017-07-20,15000.00,15000.00,Advance,"Development Program",
2017-2018,P3,"Quiet Revolution Pictures Inc.",Ottawa,Ontario,Canada,"Oleo! The Margarine Man",English,Comedy,2017-11-16,15000.00,15000.00,Advance,"Development Program",
2017-2018,P2,"Canadian Film Institute",Ottawa,Ontario,Canada,"Ottawa International Animation Festival",,,2017-07-18,44002.00,44002.00,Contribution,"Promotion Program",
2017-2018,P4,"9202-3175 QU�BEC INC.",Montreal,Quebec,Canada,"Coproduction market - no specific project",English,,2018-01-19,1000.00,1000.00,Contribution,"International Marketing Program",
2017-2018,P2,"Interstate 80 Entertainment Inc.",Calgary,Alberta,Canada,"The Garden",English,"Science fiction/Fantasy/Tale",2017-07-17,15000.00,15000.00,Advance,"Development Program",
2017-2018,P2,"Association des cin�mas parall�les du Qu�bec",Montreal,Quebec,Canada,"ACPQ R�seau Plus 2017-2018",,,2017-07-25,102743.00,102743.00,Contribution,"Promotion Program",
2017-2018,P2,"Majika Pictures Inc.",Saint-Lambert,Quebec,Canada,"A Whole Lotta Sex and Violence",English,Thriller,2017-07-18,15000.00,15000.00,Advance,"Development Program",
2017-2018,P2,"9097-4767 Qu�bec Inc.",Montreal,Quebec,Canada,"Les derniers camelots",French,Comedy,2017-07-17,15000.00,15000.00,Advance,"Development Program",
2017-2018,P2,"Rock Island Productions Ltd.","St. John's",Newfoundland/Labrador,Canada,"The Portuguese Boy",English,Drama,2017-07-18,15000.00,15000.00,Advance,"Development Program",
2017-2018,P2,"Ontario Media Development Corporation (OMDC) / Soci�t� de d�veloppement de l'industrie cin�matographique ontarienne",Toronto,Ontario,Canada,"International Financing Forum (iff) 2017",,,2017-08-10,18600.00,18600.00,Contribution,"Promotion Program",
2017-2018,P2,"Documentary Organization of Canada",Toronto,Ontario,Canada,"Festival Concierge",,,2017-07-18,8000.00,8000.00,Contribution,"Promotion Program",
2017-2018,P2,"La Bo�te � Fanny inc.",Montreal,Quebec,Canada,"Objet Volant Non Identifi�",French,Drama,2017-07-25,20000.00,20000.00,Advance,"Development Program",
2017-2018,P2,"La Bo�te � Fanny inc.",Montreal,Quebec,Canada,Yukonstyle,French,Drama,2017-07-25,15000.00,15000.00,Advance,"Development Program",
2017-2018,P2,"�a Tourne Productions Ltee.","Ste-Anne du Bocage","New Brunswick",Canada,"LA FEMME",French,Drama,2017-07-26,15000.00,15000.00,Advance,"Development Program",
2017-2018,P2,"Festival Fantasia",Montreal,Quebec,Canada,"Festival Fantasia incluant Fronti�res",,,2017-08-16,223719.00,223719.00,Contribution,"Promotion Program",
2017-2018,P2,"Films 53/12 Inc.",Montreal,Quebec,Canada,Nirliit,French,Drama,2017-07-28,20000.00,20000.00,Advance,"Development Program",
2017-2018,P2,"EMA FILMS INC.",Montreal,Quebec,Canada,RADIUS,English,Mystery/Crime/Police,2017-08-11,1500.00,1500.00,Contribution,"International Marketing Program",
2017-2018,P2,"Animaze Animation Film Festival",Montreal,Quebec,Canada,"Montreal International Animation Film Festival  - Animaze",,,2017-09-08,5000.00,5000.00,Contribution,"Promotion Program",
2017-2018,P2,"Toronto International Film Festival Inc.",Toronto,Ontario,Canada,"Toronto International Film Festival",,,2017-09-06,977710.00,977710.00,Contribution,"Promotion Program",
2017-2018,P2,"Mosaic International South Asian Film Festival",Mississauga,Ontario,Canada,"Mosaic International South Asian Film Festival",,,2017-08-28,5000.00,5000.00,Contribution,"Promotion Program",
2017-2018,P2,"Bedbugs Films Inc.",Winnipeg,Manitoba,Canada,"Submerged Landscapes",English,Comedy,2017-07-24,15000.00,15000.00,Advance,"Development Program",
2017-2018,P3,"Farpoint Films Inc.",Winnipeg,Manitoba,Canada,"Inner Alchemy",English,Drama,2017-10-16,15000.00,15000.00,Advance,"Development Program",
2017-2018,P3,"Farpoint Films Inc.",Winnipeg,Manitoba,Canada,"The Prodigal Son",English,Drama,2017-10-16,15000.00,15000.00,Advance,"Development Program",
2017-2018,P3,"Indian Horse Productions (BC) Inc.",Vancouver,"British Columbia",Canada,"Indian Horse",English,Drama,2017-10-03,50000.00,50000.00,Advance,"Marketing Program",
2017-2018,P4,"Indian Horse Productions (BC) Inc.",Vancouver,"British Columbia",Canada,"Indian Horse",English,Drama,2018-03-28,100000.00,50000.00,Advance,"Marketing Program","Amended Contract Signed 03-Oct-2017"
2017-2018,P2,"Reprise Films Inc.","Town Of Mount Royal",Quebec,Canada,"One Million Reasons",English,Drama,2017-07-26,15000.00,15000.00,Advance,"Development Program",
2017-2018,P2,"Forum Films 2005 Inc.",Montreal,Quebec,Canada,"C'est le coeur qui meurt en dernier",French,Drama,2017-09-08,1000.00,1000.00,Contribution,"International Marketing Program",
2017-2018,P2,"Christal Films Productions Inc.",Montreal,Quebec,Canada,"Coeur de slush",French,"Romantic Comedy",2017-08-29,24000.00,24000.00,Advance,"Development Program",
2017-2018,P2,"Christal Films Productions Inc.",Montreal,Quebec,Canada,"Gallant: Confessions d'un tueur � gages",French,"Historical Drama",2017-08-29,46500.00,46500.00,Advance,"Development Program",
2017-2018,P2,"Christal Films Productions Inc.",Montreal,Quebec,Canada,"Morts de rire",French,Mystery/Crime/Police,2017-08-29,55000.00,55000.00,Advance,"Development Program",
2017-2018,P2,"Christal Films Productions Inc.",Montreal,Quebec,Canada,"Para�tre ou dispara�tre",French,Comedy,2017-08-29,52500.00,52500.00,Advance,"Development Program",
2017-2018,P2,"Christal Films Productions Inc.",Montreal,Quebec,Canada,Slomo,French,Action/Adventure,2017-08-29,22000.00,22000.00,Advance,"Development Program",
2017-2018,P2,"Hill 100 Productions Inc.",Toronto,Ontario,Canada,"Arzee the Dwarf",English,"Romantic Comedy",2017-07-25,15000.00,15000.00,Advance,"Development Program",
2017-2018,P2,"Attraction Images inc.",Montreal,Quebec,Canada,M�tis,French,Comedy,2017-09-25,25000.00,25000.00,Advance,"Development Program",
2017-2018,P2,"Attraction Images inc.",Montreal,Quebec,Canada,Riel,English,"Historical Drama",2017-09-25,50000.00,50000.00,Advance,"Development Program",
2017-2018,P2,"AMF Productions Inc.",Vancouver,"British Columbia",Canada,"SHANGHAI FOLLIES",English,"Historical Drama",2017-08-08,15000.00,15000.00,Advance,"Development Program",
2017-2018,P2,"Lyla Films Inc.",Montreal,Quebec,Canada,Georges,French,Comedy,2017-08-25,15000.00,15000.00,Advance,"Development Program",
2017-2018,P2,"Lyla Films Inc.",Montreal,Quebec,Canada,"L'Habit du h�ros",French,Drama,2017-08-25,90000.00,90000.00,Advance,"Development Program",
2017-2018,P3,"Canadian Media Producers Association",Ottawa,Ontario,Canada,"The Economic Impact of Canadian Feature Film Productions",,,2017-11-01,20000.00,20000.00,Contribution,"Promotion Program",
2017-2018,P2,"MCP Productions Inc.",Montreal,Quebec,Canada," LE MAN�GE",French,Drama,2017-08-28,15000.00,15000.00,Advance,"Development Program",
2017-2018,P2,"MCP Productions Inc.",Montreal,Quebec,Canada,"LES GIRLS",French,"Historical Drama",2017-08-28,15000.00,15000.00,Advance,"Development Program",
2017-2018,P2,"Pixel Qu�bec",Quebec,Quebec,Canada,"Pixel Animation & Cartoon Connection",,,2017-09-21,60000.00,60000.00,Contribution,"Promotion Program",
2017-2018,P2,"Lady Hammond Entertainment Inc.",Dartmouth,"Nova Scotia",Canada,Nova,English,"Science fiction/Fantasy/Tale",2017-07-26,15000.00,15000.00,Advance,"Development Program",
2017-2018,P3,"Women In View",Toronto,Ontario,Canada,"Five in Focus",,,2017-11-01,2500.00,2500.00,Contribution,"Promotion Program",
2017-2018,P2,"Hungry Eyes Media Inc.",Toronto,Ontario,Canada,"Operation Red Dog",English,Comedy,2017-09-07,15000.00,15000.00,Advance,"Development Program",
2017-2018,P2,"Hungry Eyes Media Inc.",Toronto,Ontario,Canada,"Westlake Soul",English,"Science fiction/Fantasy/Tale",2017-09-07,15000.00,15000.00,Advance,"Development Program",
2017-2018,P4,"Hungry Eyes Media Inc.",Toronto,Ontario,Canada,"Rip Tide",English,Drama,2018-02-08,15000.00,0.00,Advance,"Development Program","Amended Contract Signed 07-Sep-2017"
2017-2018,P2,"Whistler Film Festival Society",Whistler,"British Columbia",Canada,"Whistler Film Festival + Summit",,,2017-08-04,82853.00,82853.00,Contribution,"Promotion Program",
2017-2018,P2,"Lumi�re Arts Festival Association",Sydney,"Nova Scotia",Canada,"Lumi�re Canadian Shorts Screening",,,2017-08-10,1000.00,1000.00,Contribution,"Promotion Program",
2017-2018,P3,"A71 Entertainment Inc.",Toronto,Ontario,Canada,"Hunting Pignut",English,Drama,2017-10-11,56000.00,56000.00,Advance,"Marketing Program",
2017-2018,P2,"ORGANISATION COMMUNICATIONS ET SOCI�T� OCS INC.",Montreal,Quebec,Canada,"Cin�cole 2017-2018",,,2017-08-28,15000.00,15000.00,Contribution,"Promotion Program",
2017-2018,P2,"Search Engine Films Inc.",Toronto,Ontario,Canada,"Don't Talk To Irene",English,Comedy,2017-09-01,61946.00,61946.00,Advance,"Marketing Program",
2017-2018,P4,"Search Engine Films Inc.",Toronto,Ontario,Canada,"Don't Talk To Irene",English,Comedy,2018-01-16,54463.00,61946.00,Advance,"Marketing Program","Amended Contract Signed 01-Sep-2017"
2017-2018,P3,"Search Engine Films Inc.",Toronto,Ontario,Canada,Sundowners,English,Comedy,2017-12-19,56666.00,56666.00,Advance,"Marketing Program",
2017-2018,P2,"Media Connections Film Inc.","St. John's",Newfoundland/Labrador,Canada,"Come Home Year",English,Comedy,2017-08-22,15000.00,15000.00,Advance,"Development Program",
2017-2018,P2,"Caribbean Tales",Toronto,Ontario,Canada," Caribbean Tales Youth Film Festival and Incubator",,,2017-08-17,23000.00,23000.00,Contribution,"Promotion Program",
2017-2018,P2,"Enigmatico Films Inc.",Toronto,Ontario,Canada,Elle,English,"Historical Drama",2017-08-17,15000.00,15000.00,Advance,"Development Program",
2017-2018,P2,"Transfilm International Inc.",Montreal,Quebec,Canada,X-HOOD,English,Action/Adventure,2017-08-24,35000.00,35000.00,Advance,"Development Program",
2017-2018,P2,"Crazy8s Film Society",Vancouver,"British Columbia",Canada,"Crazy8s Film Event",,,2017-08-30,20000.00,20000.00,Contribution,"Promotion Program",
2017-2018,P3,"9360-9196 Qu�bec Inc.",Montreal,Quebec,Canada,"Avant qu'on explose",French,Comedy,2017-10-24,1347500.00,1347500.00,Investment,"Production Program",
2017-2018,P3,"FESTIVAL DU FILM INTERNATIONAL DE BAIE-COMEAU (CINOCHE) INC",Baie-Comeau,Quebec,Canada,"Festival du Film international de Baie-Comeau",,,2017-11-27,6000.00,6000.00,Contribution,"Promotion Program",
2017-2018,P2,"Association qu�b�coise de la production m�diatique",Montreal,Quebec,Canada,"Congr�s APQM 2017",,,2017-08-08,7000.00,7000.00,Contribution,"Promotion Program",
2017-2018,P2,"Festina Lente Productions Inc.",Chester,"Nova Scotia",Canada,"Sharp Corner",English,Thriller,2017-08-14,15000.00,15000.00,Advance,"Development Program",
2017-2018,P3,"Les Perc�ides, Festival international de cin�ma et d'art de Perc�",Perce,Quebec,Canada,"Festival International de Cin�ma de Perc� - Les Perc�ides",,,2017-10-20,5408.00,5408.00,Contribution,"Promotion Program",
2017-2018,P2,"Productions Appalaches Inc.",Moncton,"New Brunswick",Canada,CIN�MADAWASKA,,,2017-09-21,1500.00,1500.00,Contribution,"Promotion Program",
2017-2018,P2,"Buck Productions Inc.",Toronto,Ontario,Canada,"Competition (The)",English,Drama,2017-08-17,1000.00,1000.00,Contribution,"International Marketing Program",
2017-2018,P3,"EMA FILMS INC.",Montreal,Quebec,Canada,"Burning and Nina",English,Drama,2017-10-17,15000.00,15000.00,Advance,"Development Program",
2017-2018,P3,"EMA FILMS INC.",Montreal,Quebec,Canada,"Hard As A Rock",English,Drama,2017-10-17,15000.00,15000.00,Advance,"Development Program",
2017-2018,P3,"EMA FILMS INC.",Montreal,Quebec,Canada,"Les mains propres",French,Drama,2017-10-17,15000.00,15000.00,Advance,"Development Program",
2017-2018,P3,"EMA FILMS INC.",Montreal,Quebec,Canada,"Super Turbo Kid 2",English,"Science fiction/Fantasy/Tale",2017-10-17,25000.00,25000.00,Advance,"Development Program",
2017-2018,P2,"Toronto Reel Asian International Film Festival",Toronto,Ontario,Canada,"Toronto Reel Asian International Film Festival",,,2017-08-22,27978.00,27978.00,Contribution,"Promotion Program",
2017-2018,P2,"6710875 Canada inc.",Gatineau,Quebec,Canada,"Rustic Oracle",English,Drama,2017-09-12,1000.00,1000.00,Contribution,"International Marketing Program",
2017-2018,P2,"Metafilms Inc.",Montreal,Quebec,Canada,Akhavan,English,Action/Adventure,2017-08-29,34000.00,34000.00,Advance,"Development Program",
2017-2018,P2,"Metafilms Inc.",Montreal,Quebec,Canada,"Jeune Juliette",French,Comedy,2017-08-29,29200.00,29200.00,Advance,"Development Program",
2017-2018,P2,"Metafilms Inc.",Montreal,Quebec,Canada,"L'euphorie des autres",French,Thriller,2017-08-29,61000.00,61000.00,Advance,"Development Program",
2017-2018,P2,"Metafilms Inc.",Montreal,Quebec,Canada,"Nursing School",English,Thriller,2017-08-29,22400.00,22400.00,Advance,"Development Program",
2017-2018,P2,"Resonance Films Inc.",Vancouver,"British Columbia",Canada,"THE MILK CARTON KID",English,Comedy,2017-08-11,15000.00,15000.00,Advance,"Development Program",
2017-2018,P2,"Yorkton Short Film and Video Festival Inc.",Yorkton,Saskatchewan,Canada,"Yorkton Film Festival",,,2017-09-11,22045.00,22045.00,Contribution,"Promotion Program",
2017-2018,P3,"Orange M�dias Inc.",Rosemere,Quebec,Canada,Innocent,French,Comedy,2017-10-10,150000.00,150000.00,Advance,"Marketing Program",
2017-2018,P3,"BGIRP Inc.",Toronto,Ontario,Canada,"Brown Girl Begins",English,"Science fiction/Fantasy/Tale",2017-11-21,50000.00,50000.00,Advance,"Marketing Program",
2017-2018,P4,"DCP Lucky Day Inc.",Toronto,Ontario,Canada,"Lucky Day",English,Drama,2018-03-23,3007815.00,3007815.00,Investment,"Production Program",
2017-2018,P3,"Rink Rat Productions Inc.","St. John's",Newfoundland/Labrador,Canada,"A Bay Story",English,Comedy,2017-11-14,15000.00,15000.00,Advance,"Development Program",
2017-2018,P3,"Rink Rat Productions Inc.","St. John's",Newfoundland/Labrador,Canada,"Auntie Vigilantes",English,Comedy,2017-11-14,15000.00,15000.00,Advance,"Development Program",
2017-2018,P3,"Rink Rat Productions Inc.","St. John's",Newfoundland/Labrador,Canada,"Brotherly Love",English,Drama,2017-11-14,15000.00,15000.00,Advance,"Development Program",
2017-2018,P3,"Rink Rat Productions Inc.","St. John's",Newfoundland/Labrador,Canada,"Dear Everybody",English,"Historical Drama",2017-11-14,15000.00,15000.00,Advance,"Development Program",
2017-2018,P4,"First Generation Films Inc.",Toronto,Ontario,Canada,Seiner,English,Action/Adventure,2018-01-17,35000.00,35000.00,Advance,"Development Program",
2017-2018,P2,"Front des r�alisateurs ind�pendants du Canada (FRIC)",Ottawa,Ontario,Canada,"Les arts m�diatiques en action !",,,2017-09-11,20000.00,20000.00,Contribution,"Promotion Program",
2017-2018,P2,"9012-6640 Qu�bec inc. (K-Films Am�rique)",Montreal,Quebec,Canada,"Et au pire, on se mariera",French,Drama,2017-08-31,35000.00,35000.00,Advance,"Marketing Program",
2017-2018,P2,"Rob Heydon Holdings Inc.","Stoney Creek",Ontario,Canada,"The Devil Knows Your Name",English,Thriller,2017-08-15,15000.00,15000.00,Advance,"Development Program",
2017-2018,P3,"Vancouver Asian Film Festival Society",Vancouver,"British Columbia",Canada,"Vancouver Asian Film Festival",,,2017-11-09,5000.00,5000.00,Contribution,"Promotion Program",
2017-2018,P2,"3 Legged Dog Films Ltd.",Toronto,Ontario,Canada,"The Feast",English,Drama,2017-08-23,15000.00,15000.00,Advance,"Development Program",
2017-2018,P2,"Festival du nouveau cin�ma de Montr�al",Montreal,Quebec,Canada,"Festival du nouveau cin�ma de Montr�al",,,2017-08-30,183031.00,183031.00,Contribution,"Promotion Program",
2017-2018,P3,"Festival du nouveau cin�ma de Montr�al",Montreal,Quebec,Canada,"Festival du nouveau cin�ma de Montr�al",,,2017-12-13,188031.00,183031.00,Contribution,"Promotion Program","Amended Contract Signed 30-Aug-2017"
2017-2018,P2,"Directors Guild Of Canada",Toronto,Ontario,Canada,"DGC Awards Gala",,,2017-08-15,2500.00,2500.00,Contribution,"Promotion Program",
2017-2018,P2,"Jonathan Joffe Pictures Ltd.",Calgary,Alberta,Canada,"How To Make A Killing In Indie Film",English,Comedy,2017-08-15,15000.00,15000.00,Advance,"Development Program",
2017-2018,P2,"Productrices Associ�es KVNB Inc.",Montreal,Quebec,Canada,"CHERCHER SAM",French,Drama,2017-09-15,15000.00,15000.00,Advance,"Development Program",
2017-2018,P2,"Six Island Productions Inc.",Toronto,Ontario,Canada,"Jerusalem - The Quarters",English,Drama,2017-08-28,15000.00,15000.00,Advance,"Development Program",
2017-2018,P2,"Six Island Productions Inc.",Toronto,Ontario,Canada,L'Inspecteur,French,"Historical Drama",2017-08-28,15000.00,15000.00,Advance,"Development Program",
2017-2018,P2,"Six Island Productions Inc.",Toronto,Ontario,Canada,"The Syrian Dancer",English,Drama,2017-08-28,15000.00,15000.00,Advance,"Development Program",
2017-2018,P2,"Coop Vid�o de Montr�al",Montreal,Quebec,Canada,"2 X 4",French,Comedy,2017-09-07,25000.00,25000.00,Advance,"Development Program",
2017-2018,P2,"Coop Vid�o de Montr�al",Montreal,Quebec,Canada,"Claude et Patricia",French,Drama,2017-09-07,20000.00,20000.00,Advance,"Development Program",
2017-2018,P2,"Canadian Media Producers Association - Association canadienne de la production m�diatique",Ottawa,Ontario,Canada,"VIFF Industry Exchange",,,2017-09-14,20000.00,20000.00,Contribution,"Promotion Program",
2017-2018,P2,"Go Films L.P.R.S. Inc.",Montreal,Quebec,Canada,"CHIEN BLANC",French,Drama,2017-08-29,48000.00,48000.00,Advance,"Development Program",
2017-2018,P2,"Go Films L.P.R.S. Inc.",Montreal,Quebec,Canada,"French Space",French,Comedy,2017-08-29,27000.00,27000.00,Advance,"Development Program",
2017-2018,P2,"Go Films L.P.R.S. Inc.",Montreal,Quebec,Canada,"LE PLONGEUR",French,Drama,2017-08-29,40000.00,40000.00,Advance,"Development Program",
2017-2018,P2,"Go Films L.P.R.S. Inc.",Montreal,Quebec,Canada,"Passion Chips",French,Comedy,2017-08-29,15000.00,15000.00,Advance,"Development Program",
2017-2018,P3,"Creative Women Workshops Association","North Vancouver","British Columbia",Canada,"Women In the Director's Chair - WIDC 2018",,,2017-10-06,50000.00,50000.00,Contribution,"Promotion Program",
2017-2018,P2,"Rencontres internationales du documentaire de Montr�al",Montreal,Quebec,Canada,"Rencontres internationales du documentaire de Montr�al",,,2017-08-28,90330.00,90330.00,Contribution,"Promotion Program",
2017-2018,P2,"WANGO Films Inc.",Toronto,Ontario,Canada,Wander,English,Thriller,2017-08-18,15000.00,15000.00,Advance,"Development Program",
2017-2018,P2,"Productions Avenida inc.",Montreal,Quebec,Canada,"Les �toiles filantes",French,"Romantic Comedy",2017-08-29,15000.00,15000.00,Advance,"Development Program",
2017-2018,P2,"Productions Avenida inc.",Montreal,Quebec,Canada,Madame,French,Documentary,2017-08-29,15000.00,15000.00,Advance,"Development Program",
2017-2018,P2,"Productions Avenida inc.",Montreal,Quebec,Canada,Mishqa,French,Action/Adventure,2017-08-29,15000.00,15000.00,Advance,"Development Program",
2017-2018,P3,"Festival International du Film sur l'Art",Montreal,Quebec,Canada,"Festival International du Film sur l'Art",,,2017-12-20,34608.00,34608.00,Contribution,"Promotion Program",
2017-2018,P3,"Motion Picture Theatre Associations Of Canada / Associations des cin�mas du Canada",Toronto,Ontario,Canada,ShowCanada,,,2017-10-10,10000.00,10000.00,Contribution,"Promotion Program",
2017-2018,P2,"PUNK Films Inc.",Toronto,Ontario,Canada,"Porcupine Lake",English,Drama,2017-09-18,4000.00,4000.00,Contribution,"International Marketing Program",
2017-2018,P3,"Lunenburg Doc Fest Association",Lunenburg,"Nova Scotia",Canada,"Lunenburg Doc Fest",,,2017-10-03,1200.00,1200.00,Contribution,"Promotion Program",
2017-2018,P3,"Mark Sawers Productions Ltd.","West Vancouver","British Columbia",Canada,"Mum's The Word",English,Comedy,2017-11-22,15000.00,15000.00,Advance,"Development Program",
2017-2018,P3,"Mark Sawers Productions Ltd.","West Vancouver","British Columbia",Canada,Crawlspace,English,Horror,2017-11-22,15000.00,15000.00,Advance,"Development Program",
2017-2018,P3,"Atlantic Filmmakers Cooperative Limited",Halifax,"Nova Scotia",Canada,"FILM 5 / HIFF",,,2017-10-16,26000.00,26000.00,Contribution,"Promotion Program",
2017-2018,P2,"Howie Role Productions Inc.",Vancouver,"British Columbia",Canada,"The Bigamist",English,Drama,2017-08-30,15000.00,15000.00,Advance,"Development Program",
2017-2018,P3,"Productions 10e Ave Inc.",Saint-Augustin-de-Desmaures,Quebec,Canada,"Brad, le g�nie des Pomerleau",French,Comedy,2017-11-27,65000.00,65000.00,Advance,"Development Program",
2017-2018,P3,"Productions 10e Ave Inc.",Saint-Augustin-de-Desmaures,Quebec,Canada,"Contes de No�l",French,"Science fiction/Fantasy/Tale",2017-11-27,30000.00,30000.00,Advance,"Development Program",
2017-2018,P2,"Shore Road Pictures Inc.",Fredericton,"New Brunswick",Canada,Strathcona,English,Drama,2017-09-12,15000.00,15000.00,Advance,"Development Program",
2017-2018,P3,"Winnipeg Aboriginal Film and Video Festival Inc.",Winnipeg,Manitoba,Canada,"Winnipeg Aboriginal Film and Video Festival",,,2017-11-10,5000.00,5000.00,Contribution,"Promotion Program",
2017-2018,P2,"Voyelles Films inc.",Montreal,Quebec,Canada,"L'heure des chats",French,Drama,2017-09-19,15000.00,15000.00,Advance,"Development Program",
2017-2018,P2,"Victoria Independent Film and Video Festival",Victoria,"British Columbia",Canada,"Victoria Film Festival and Springboard",,,2017-09-19,32445.00,32445.00,Contribution,"Promotion Program",
2017-2018,P2,"Festival international du film pour enfants de Montr�al",Montreal,Quebec,Canada,FIFEM,,,2017-09-11,16223.00,16223.00,Contribution,"Promotion Program",
2017-2018,P2,"Oddfellows Entertainment Inc.",Vancouver,"British Columbia",Canada,"A Wolf in the Cellar",English,Horror,2017-08-25,20000.00,20000.00,Advance,"Development Program",
2017-2018,P3,"GESTION CTVM + WEB INC",Outremont,Quebec,Canada,"Promotion et visibilit� de T�l�film sur CTVM.info",,,2017-10-26,23000.00,23000.00,Contribution,"Promotion Program",
2017-2018,P4,"GESTION CTVM + WEB INC",Outremont,Quebec,Canada,"Promotion et visibilit� de T�l�film sur CTVM.info",,,2018-03-22,38000.00,23000.00,Contribution,"Promotion Program","Amended Contract Signed 26-Oct-2017"
2017-2018,P2,"Item 7 Inc.",Montreal,Quebec,Canada,"Eye on Juliet (aka Virgin 2.0)",English,Drama,2017-09-19,25000.00,25000.00,Contribution,"International Marketing Program",
2017-2018,P3,"Filmoption International Inc.",Westmount,Quebec,Canada,BOOST,English,Drama,2017-12-20,136409.00,136409.00,Advance,"Marketing Program",
2017-2018,P4,"Level Film Inc.",Toronto,Ontario,Canada,"Suck it Up",English,Comedy,2018-01-31,30030.00,30030.00,Advance,"Marketing Program",
2017-2018,P4,"Shaftesbury Carmilla Movie Inc.",Toronto,Ontario,Canada,"Carmilla: The Movie",English,"Science fiction/Fantasy/Tale",2018-03-01,50000.00,50000.00,Advance,"Marketing Program",
2017-2018,P2,"Parce Que Films inc.",Montreal,Quebec,Canada,"Culte - Fraternit�",French,Drama,2017-09-06,15000.00,15000.00,Advance,"Development Program",
2017-2018,P2,"Geordie Sabbagh Productions Inc.",Toronto,Ontario,Canada,"Stay at Home",English,Comedy,2017-08-30,15000.00,15000.00,Advance,"Development Program",
2017-2018,P2,"LES PRODUCTIONS KINESIS INC.",Montreal,Quebec,Canada,"Le festin bor�al",French,Drama,2017-08-31,15000.00,15000.00,Advance,"Development Program",
2017-2018,P2,"Canadian Media Producers Association - Association canadienne de la production m�diatique",Ottawa,Ontario,Canada,"Prime Time conference, Marketing Mentorship Program",,,2017-09-19,65000.00,65000.00,Contribution,"Promotion Program",
2017-2018,P3,"L'OEIL VIF (Faisant affaire sous le nom de Films du 3 mars)",Montreal,Quebec,Canada,"LA R�SURRECTION D'HASSAN",French,Documentary,2017-11-07,20000.00,20000.00,Advance,"Marketing Program",
2017-2018,P2,"9341-9315 Qu�bec Inc.",Verdun,Quebec,Canada,"Geek Girls",English,Documentary,2017-09-14,1500.00,1500.00,Contribution,"International Marketing Program",
2017-2018,P3,"New Real Films Inc.",Toronto,Ontario,Canada,"Crazy Me",English,Drama,2017-11-08,15000.00,15000.00,Advance,"Development Program",
2017-2018,P3,"New Real Films Inc.",Toronto,Ontario,Canada,"Let It Rain",English,Drama,2017-11-08,15000.00,15000.00,Advance,"Development Program",
2017-2018,P3,"New Real Films Inc.",Toronto,Ontario,Canada,"Kicking Blood",English,Comedy,2017-11-08,20000.00,20000.00,Advance,"Development Program",
2017-2018,P4,"9272-3618 Qu�bec inc.",Montreal,Quebec,Canada,"La femme de mon fr�re",French,Comedy,2018-01-16,1000000.00,1000000.00,Investment,"Production Program",
2017-2018,P4,"Raven Banner Releasing Inc.",Toronto,Ontario,Canada,"Dead Shack",English,Horror,2018-02-05,45787.00,45787.00,Advance,"Marketing Program",
2017-2018,P3,"Banner House Productions Inc.",Montreal,Quebec,Canada,"Untitled Smuggler Film",English,Comedy,2017-10-16,15000.00,15000.00,Advance,"Development Program",
2017-2018,P3,"Banner House Productions Inc.",Montreal,Quebec,Canada,"The Love Experiment",English,"Romantic Comedy",2017-10-16,15000.00,15000.00,Advance,"Development Program",
2017-2018,P3,"Filmoption International Inc.",Westmount,Quebec,Canada,"La Chute De Sparte",French,Drama,2017-12-18,313050.00,313050.00,Advance,"Marketing Program",
2017-2018,P3,"Eye Steel Film Distribution inc.",Montreal,Quebec,Canada,"Let There Be Light",English,Documentary,2017-12-07,31407.00,31407.00,Advance,"Marketing Program",
2017-2018,P3,"Filmoption International Inc.",Westmount,Quebec,Canada,RADIUS,English,Mystery/Crime/Police,2017-12-04,131137.00,131137.00,Advance,"Marketing Program",
2017-2018,P2,"Goodbye Productions Inc.",Vancouver,"British Columbia",Canada,"Dead Shack",English,Horror,2017-09-18,1500.00,1500.00,Contribution,"International Marketing Program",
2017-2018,P2,"Rodeo Queen Pictures Inc.",Vancouver,"British Columbia",Canada,"The Cure for Death by Lightning",English,Drama,2017-09-14,15000.00,15000.00,Advance,"Development Program",
2017-2018,P3,"Les Productions des Films de l'Autre Inc.",Montreal,Quebec,Canada,Tadoussac,French,Drama,2017-10-05,1500.00,1500.00,Contribution,"International Marketing Program",
2017-2018,P3,"Filmoption International Inc.",Westmount,Quebec,Canada,ORIGAMI,French,Drama,2017-12-04,112500.00,112500.00,Advance,"Marketing Program",
2017-2018,P3,"National Screen Institute - Canada",Winnipeg,Manitoba,Canada,"NSI Training Programs",,,2017-10-12,259500.00,259500.00,Contribution,"Promotion Program",
2017-2018,P2,"Films Du Paria Inc. (les)",Longueuil,Quebec,Canada,"La Flore Laurentienne",French,Comedy,2017-09-18,15000.00,15000.00,Advance,"Development Program",
2017-2018,P2,"3090-5178 Quebec Inc. f/a/s Palomar",Montreal,Quebec,Canada,"Accommodements raisonnables",French,Drama,2017-09-14,15000.00,15000.00,Advance,"Development Program",
2017-2018,P2,"The Charlottetown Film Society, Inc.",Charlottetown,"Prince Edward Island",Canada,"Charlottetown FIlm Festival",,,2017-09-27,2500.00,2500.00,Contribution,"Promotion Program",
2017-2018,P3,"The Island Media Arts Co-operative Association, Limited",Charlottetown,"Prince Edward Island",Canada,"The PEI Screenwriters' Bootcamp 2018",,,2017-10-10,15000.00,15000.00,Contribution,"Promotion Program",
2017-2018,P2,"9051007 Canada Inc. o/a Naiad Productions",Toronto,Ontario,Canada,Mermaids,English,Documentary,2017-09-25,1500.00,1500.00,Contribution,"International Marketing Program",
2017-2018,P2,"Earthlings Productions Inc.",Montreal,Quebec,Canada,"The Hummingbird Project",English,Action/Adventure,2017-09-15,450000.00,450000.00,Advance,"Production Program",
2017-2018,P2,"Sheep Noir Films Inc.",Vancouver,"British Columbia",Canada,Slipstream,English,Thriller,2017-09-13,15000.00,15000.00,Advance,"Development Program",
2017-2018,P2,"9328-8132 Qu�bec inc.",Montreal,Quebec,Canada,ABU,English,Documentary,2017-09-26,1500.00,1500.00,Contribution,"International Marketing Program",
2017-2018,P3,"Corporation Wapikoni Mobile",Montreal,Quebec,Canada,"Projet de formation destin� aux jeunes autochtones",,,2017-12-07,50000.00,50000.00,Contribution,"Promotion Program",
2017-2018,P3,"Fluent Films Inc.",Montreal,Quebec,Canada,"This is Glory",English,Drama,2017-10-19,15000.00,15000.00,Advance,"Development Program",
2017-2018,P3,"Fluent Films Inc.",Montreal,Quebec,Canada,"La Chute du Coureur",French,Thriller,2017-10-19,15000.00,15000.00,Advance,"Development Program",
2017-2018,P3,"Manifold Pictures Inc.",Calgary,Alberta,Canada,"Lost (aka The Water Remembers)",English,Drama,2017-12-19,15000.00,15000.00,Advance,"Development Program",
2017-2018,P3,"Manifold Pictures Inc.",Calgary,Alberta,Canada,"The Red River",English,"Historical Drama",2017-12-19,15000.00,15000.00,Advance,"Development Program",
2017-2018,P3,"Women In Film & Television Vancouver Society",Vancouver,"British Columbia",Canada,"Vancouver International Women in Film Festival and Genre Lab",,,2017-10-03,15000.00,15000.00,Contribution,"Promotion Program",
2017-2018,P3,"9097-4767 Qu�bec Inc.",Montreal,Quebec,Canada,"Sur la lune de nickel",French,Documentary,2017-10-06,1500.00,1500.00,Contribution,"International Marketing Program",
2017-2018,P3,"Markham Street Films Inc.",Toronto,Ontario,Canada,"Meeting the Sumdees",English,Comedy,2017-10-17,15000.00,15000.00,Advance,"Development Program",
2017-2018,P3,"Mythic Productions Inc.","Richmond Hill",Ontario,Canada,"Finding Marco",English,Drama,2017-12-13,15000.00,15000.00,Advance,"Development Program",
2017-2018,P3,"Mythic Productions Inc.","Richmond Hill",Ontario,Canada,"Flee Fly Flown",English,Drama,2017-12-13,15000.00,15000.00,Advance,"Development Program",
2017-2018,P2,"Clique Pictures Inc.",Toronto,Ontario,Canada,"Riot Girls",English,"Science fiction/Fantasy/Tale",2017-09-21,100000.00,100000.00,Advance,"Production Program",
2017-2018,P3,"Buffer Festival Inc.",Toronto,Ontario,Canada,"Buffer Festival",,,2017-11-30,5000.00,5000.00,Contribution,"Promotion Program",
2017-2018,P3,"Rhombus Possessor Inc.",Toronto,Ontario,Canada,Possessor,English,Drama,2017-10-06,150000.00,150000.00,Advance,"Production Program",
2017-2018,P3,"Planet in Focus: International Environmental Film & Video Festival",Toronto,Ontario,Canada,"Planet in Focus: International Environmental Film Festival",,,2017-10-10,3000.00,3000.00,Contribution,"Promotion Program",
2017-2018,P3,"Visions Ouest Productions",Vancouver,"British Columbia",Canada,"Rendez-vous du cin�ma qu�becois et francophone de Vancouver",,,2017-12-14,8132.00,8132.00,Contribution,"Promotion Program",
2017-2018,P4,"Funfilm Distribution Inc.",Montreal,Quebec,Canada,"Les d�poss�d�s",French,Documentary,2018-01-09,20000.00,20000.00,Advance,"Marketing Program",
2017-2018,P3,"Second Sight Pictures Inc.",Montreal,Quebec,Canada,Cielo,English,Documentary,2017-11-21,5000.00,5000.00,Contribution,"International Marketing Program",
2017-2018,P3,"A71 Entertainment Inc.",Toronto,Ontario,Canada,"Great Great Great",English,Drama,2017-12-15,45000.00,45000.00,Advance,"Marketing Program",
2017-2018,P3,"Orange M�dias Inc.",Rosemere,Quebec,Canada,"Le Bureau des anomalies",French,Comedy,2017-10-04,20000.00,20000.00,Advance,"Development Program",
2017-2018,P3,"Orange M�dias Inc.",Rosemere,Quebec,Canada,"TOUTENBOUL, LA PLAN�TE DES �MOTIONS",French,Comedy,2017-10-04,15000.00,15000.00,Advance,"Development Program",
2017-2018,P3,"Orange M�dias Inc.",Rosemere,Quebec,Canada,"Le coeur d'Andr�a",French,Drama,2017-10-04,15000.00,15000.00,Advance,"Development Program",
2017-2018,P2,"9281-8269 Qu�bec Inc.",St-Bruno,Quebec,Canada,"De m�moire d'homme",French,"Romantic Comedy",2017-09-25,15000.00,15000.00,Advance,"Development Program",
2017-2018,P2,"Les Productions des Films de l'Autre Inc.",Montreal,Quebec,Canada,"The Longest walk",French,Drama,2017-09-21,25000.00,25000.00,Advance,"Development Program",
2017-2018,P3,"Middle Child Films Inc.",Toronto,Ontario,Canada,"Very Bad Deaths",English,"Science fiction/Fantasy/Tale",2017-10-18,15000.00,15000.00,Advance,"Development Program",
2017-2018,P3,"SHERPAS FILMS INC.",Montreal,Quebec,Canada,"Le Fils Adoptif",French,Drama,2017-10-19,15000.00,15000.00,Advance,"Development Program",
2017-2018,P3,"Cin�mental inc.",Winnipeg,Manitoba,Canada,"Cin�mental 2017",,,2017-11-27,4046.00,4046.00,Contribution,"Promotion Program",
2017-2018,P3,"Blue Goat Films Inc.",Calgary,Alberta,Canada,"Little Wisdom (A)",English,Drama,2017-11-30,10000.00,10000.00,Contribution,"International Marketing Program",
2017-2018,P3,"Hope of Glory Pictures Ltd.",Burnaby,"British Columbia",Canada,"Your Heart is The Size of Your Fist",English,Drama,2017-10-21,15000.00,15000.00,Advance,"Development Program",
2017-2018,P3,"9256-8658 QUEBEC INC.",Montreal,Quebec,Canada,Tadoussac,French,Drama,2017-10-30,1500.00,1500.00,Contribution,"International Marketing Program",
2017-2018,P3,"Blood in the Snow Canadian Film Festival",Toronto,Ontario,Canada,"2017 Blood in the Snow Canadian Film Festival",,,2017-11-10,5000.00,5000.00,Contribution,"Promotion Program",
2017-2018,P3,"Stone Cold Productions Limited",Dartmouth,"Nova Scotia",Canada,"Bare Parts",English,Comedy,2017-11-21,15000.00,15000.00,Advance,"Development Program",
2017-2018,P3,"2412658 Ontario Inc.",Toronto,Ontario,Canada,"The England Trip",English,Comedy,2017-10-25,15000.00,15000.00,Advance,"Development Program",
2017-2018,P3,"Blac Op Films Incorporated",Dartmouth,"Nova Scotia",Canada,"Black Cop",English,Drama,2017-10-11,4500.00,4500.00,Contribution,"International Marketing Program",
2017-2018,P3,"Steady Films Inc.",Vancouver,"British Columbia",Canada,"Never Steady, Never Still",English,Drama,2017-10-02,1500.00,1500.00,Contribution,"International Marketing Program",
2017-2018,P4,"Mouthpiece (FGM) Films Inc.",Toronto,Ontario,Canada,Mouthpiece,English,Drama,2018-01-18,750000.00,750000.00,Investment,"Production Program",
2017-2018,P4,"Woods Entertainment Canada Inc.",Toronto,Ontario,Canada,"With Grace & Might",English,Drama,2018-01-03,15000.00,15000.00,Advance,"Development Program",
2017-2018,P4,"Woods Entertainment Canada Inc.",Toronto,Ontario,Canada,"Civil Disobedience",English,Thriller,2018-01-03,15000.00,15000.00,Advance,"Development Program",
2017-2018,P4,"Grassfire Films Inc.","New Waterford","Nova Scotia",Canada,Ophelia,English,Drama,2018-02-02,15000.00,15000.00,Advance,"Development Program",
2017-2018,P4,"Grassfire Films Inc.","New Waterford","Nova Scotia",Canada,"Two Cuckolds Go Swimming",English,Drama,2018-02-02,15000.00,15000.00,Advance,"Development Program",
2017-2018,P3,"6909060 Canada Inc.",Montreal,Quebec,Canada,"Simmer Down",English,Comedy,2017-12-20,15000.00,15000.00,Advance,"Development Program",
2017-2018,P3,"6909060 Canada Inc.",Montreal,Quebec,Canada,"The Last Straw",English,Drama,2017-12-20,15000.00,15000.00,Advance,"Development Program",
2017-2018,P3,"Film Zone Inc.",Moncton,"New Brunswick",Canada,"Festival international du cin�ma francophone en Acadie",,,2017-11-10,52808.00,52808.00,Contribution,"Promotion Program",
2017-2018,P3,"Steady Films Inc.",Vancouver,"British Columbia",Canada,"Never Steady, Never Still",English,Drama,2017-10-04,9500.00,9500.00,Contribution,"International Marketing Program",
2017-2018,P4,"A-Z Films Inc.",Montreal,Quebec,Canada,"We're Still Together",English,Drama,2018-03-23,38053.00,38053.00,Advance,"Marketing Program",
2017-2018,P2,"9215-8534 Qu�bec Inc. (Parallaxes)",Saint-Pierre,Quebec,Canada,Pentimento,French,Mystery/Crime/Police,2017-09-29,15000.00,15000.00,Advance,"Development Program",
2017-2018,P4,"Brunico Communications Ltd.",Toronto,Ontario,Canada,"Entertainment Marketing Forum",,,2018-03-19,40000.00,40000.00,Contribution,"Promotion Program",
2017-2018,P3,"Western Arctic Moving Pictures",Yellowknife,"North West Territories",Canada,"The Yellowknife International Film Festival",,,2017-10-13,5000.00,5000.00,Contribution,"Promotion Program",
2017-2018,P3,"Cineast Screen Development Limited",Halifax,"Nova Scotia",Canada,"MEAT COVE",English,Thriller,2017-10-25,15000.00,15000.00,Advance,"Development Program",
2017-2018,P3,"DEDfest: Edmonton Horror Film Society",Edmonton,Alberta,Canada,"DEDfest - All-Woman Jury Initiative",,,2017-10-24,3000.00,3000.00,Contribution,"Promotion Program",
2017-2018,P3,"Sudden Storm Entertainment Ltd.",Toronto,Ontario,Canada,Exponential,English,Action/Adventure,2017-10-27,15000.00,15000.00,Advance,"Development Program",
2017-2018,P3,"Shadow Shows Incorporated",Toronto,Ontario,Canada,"The Last Dinner Party",English,Comedy,2017-12-20,15000.00,15000.00,Advance,"Development Program",
2017-2018,P3,"Shadow Shows Incorporated",Toronto,Ontario,Canada,"La Fille de la Coiffeuse",French,Drama,2017-12-20,15000.00,15000.00,Advance,"Development Program",
2017-2018,P3,"L'OEIL VIF (Faisant affaire sous le nom de Films du 3 mars)",Montreal,Quebec,Canada,"Sur la lune de nickel",French,Documentary,2017-12-07,10000.00,10000.00,Advance,"Marketing Program",
2017-2018,P3,"Amerique Film Inc.",Montreal,Quebec,Canada,Baby-sitter,French,Comedy,2017-10-16,15000.00,15000.00,Advance,"Development Program",
2017-2018,P3,"Saskatchewan Media Production Industry Association (SMPIA) Inc.",Regina,Saskatchewan,Canada,"Saskatchewan Film Week",,,2017-11-02,5000.00,5000.00,Contribution,"Promotion Program",
2017-2018,P3,"Greenground Productions Inc.",Montreal,Quebec,Canada,"Primas (previous title - Rocio)",French,Documentary,2017-11-16,5000.00,5000.00,Contribution,"International Marketing Program",
2017-2018,P3,"1976 Productions Inc.",Montreal,Quebec,Canada,"� huis clos avec mon p�re",French,Drama,2017-11-29,15000.00,15000.00,Advance,"Development Program",
2017-2018,P3,"1976 Productions Inc.",Montreal,Quebec,Canada,Javotte,French,Drama,2017-11-29,15000.00,15000.00,Advance,"Development Program",
2017-2018,P3,"1976 Productions Inc.",Montreal,Quebec,Canada,"La ligne jaune",French,Thriller,2017-11-29,15000.00,15000.00,Advance,"Development Program",
2017-2018,P3,"Les Productions du Cerf-Volant Inc.",Sherbrooke,Quebec,Canada,"NO�L DES ANGES",French,Drama,2017-10-18,15000.00,15000.00,Advance,"Development Program",
2017-2018,P4,"Les Productions du Cerf-Volant Inc.",Sherbrooke,Quebec,Canada,"Lost In The Cold / Marruuk qupanuak asiumajuuk ijj",English,Documentary,2018-02-08,15000.00,0.00,Advance,"Development Program","Amended Contract Signed 18-Oct-2017"
2017-2018,P4,"9185-6120 Qu�bec Inc.",Montreal,Quebec,Canada,C,French,Western,2018-01-31,300000.00,300000.00,Contribution,"Production Program",
2017-2018,P3,"Buck Productions Inc.",Toronto,Ontario,Canada,"Lucky 13",English,Comedy,2017-12-07,15000.00,15000.00,Advance,"Development Program",
2017-2018,P3,"Jobro Productions Inc.",Toronto,Ontario,Canada,"Get Over It",English,"Romantic Comedy",2017-11-03,15000.00,15000.00,Advance,"Development Program",
2017-2018,P3,"Association coop�rative de productions audio-visuelles",Montreal,Quebec,Canada,Antigone,French,Drama,2017-11-15,35000.00,35000.00,Advance,"Development Program",
2017-2018,P3,"Association coop�rative de productions audio-visuelles",Montreal,Quebec,Canada,FLI,French,Drama,2017-11-15,15000.00,15000.00,Advance,"Development Program",
2017-2018,P3,"Association coop�rative de productions audio-visuelles",Montreal,Quebec,Canada,"LE TEMPS",French,Drama,2017-11-15,15000.00,15000.00,Advance,"Development Program",
2017-2018,P3,"Association coop�rative de productions audio-visuelles",Montreal,Quebec,Canada,"LES SENTIERS DE LA FOUDRE",French,Drama,2017-11-15,15000.00,15000.00,Advance,"Development Program",
2017-2018,P3,"Association coop�rative de productions audio-visuelles",Montreal,Quebec,Canada,"L'UNIVERS ME COMPREND ET M'ENGLOUTIT",French,Drama,2017-11-15,15000.00,15000.00,Advance,"Development Program",
2017-2018,P3,"LLI Films Ltd.",Vancouver,"British Columbia",Canada,Luk'Luk'l,English,Drama,2017-10-25,1500.00,1500.00,Contribution,"International Marketing Program",
2017-2018,P3,"Storyline Fx Inc.",Winnipeg,Manitoba,Canada,"Freeze Frame Int'l Film Festival For Kids of All Ages",,,2017-11-06,9345.00,9345.00,Contribution,"Promotion Program",
2017-2018,P3,"Prix coll�gial du cin�ma qu�b�cois",Montreal,Quebec,Canada,"Prix coll�gial du cin�ma qu�b�cois",,,2017-12-22,20000.00,20000.00,Contribution,"Promotion Program",
2017-2018,P3,"Canadian Filmmakers Festival",Toronto,Ontario,Canada,"Canadian Film Fest",,,2017-11-29,5000.00,5000.00,Contribution,"Promotion Program",
2017-2018,P3,Paraloeil,Rimouski,Quebec,Canada,"Cin�ma Paraloeil - du cin�ma qui nous regarde",,,2017-12-19,6105.00,6105.00,Contribution,"Promotion Program",
2017-2018,P3,"Films Rumi inc. (Les)",Montreal,Quebec,Canada,"M�re porteuse musulmane",French,Drama,2017-10-23,15000.00,15000.00,Advance,"Development Program",
2017-2018,P3,"Triptych Media Inc.",Stratford,Ontario,Canada,"THE MAIN CHANCE",English,Comedy,2017-10-31,15000.00,15000.00,Advance,"Development Program",
2017-2018,P3,"Lumanity Productions Inc.",Toronto,Ontario,Canada,"I & I",English,"Science fiction/Fantasy/Tale",2017-11-14,15000.00,15000.00,Advance,"Development Program",
2017-2018,P3,"Steady Films Inc.",Vancouver,"British Columbia",Canada,"Never Steady, Never Still",English,Drama,2017-11-02,1500.00,1500.00,Contribution,"International Marketing Program",
2017-2018,P4,"Fella Films Inc.",Ottawa,Ontario,Canada,"Assisted Living",English,Comedy,2018-01-02,40000.00,40000.00,Advance,"Development Program",
2017-2018,P4,"Fella Films Inc.",Ottawa,Ontario,Canada,"All The Ugly and Wonderful Things",English,Drama,2018-01-02,15000.00,15000.00,Advance,"Development Program",
2017-2018,P3,"Newfoundland Independent Filmmakers Co-Operative","St. John's",Newfoundland/Labrador,Canada,"Picture Start",,,2017-10-30,49000.00,49000.00,Contribution,"Promotion Program",
2017-2018,P3,"Cin�maginaire Inc.",Montreal,Quebec,Canada,"Les Bombes",French,Comedy,2017-12-18,59300.00,59300.00,Advance,"Development Program",
2017-2018,P3,"Cin�maginaire Inc.",Montreal,Quebec,Canada,Annabelle,French,Drama,2017-12-18,15000.00,15000.00,Advance,"Development Program",
2017-2018,P3,"Cin�maginaire Inc.",Montreal,Quebec,Canada,"Comp�tences parentales",French,Drama,2017-12-18,58000.00,58000.00,Advance,"Development Program",
2017-2018,P3,"Cin�maginaire Inc.",Montreal,Quebec,Canada,SAM,French,Drama,2017-12-18,49000.00,49000.00,Advance,"Development Program",
2017-2018,P3,"Cin�maginaire Inc.",Montreal,Quebec,Canada,"Un film sur",French,Mystery/Crime/Police,2017-12-18,18700.00,18700.00,Advance,"Development Program",
2017-2018,P3,"Solofilms Inc.",Montreal,Quebec,Canada,"DANNY TORRELI, LA L�GENDE DU MINI-PUTT",French,Comedy,2017-11-28,15000.00,15000.00,Advance,"Development Program",
2017-2018,P4,"The Film Farm Inc.",Toronto,Ontario,Canada,"Lord Only Knows I'm Gone",English,Drama,2018-02-15,15000.00,15000.00,Advance,"Development Program",
2017-2018,P4,"The Film Farm Inc.",Toronto,Ontario,Canada,"The Last Weekend",English,Drama,2018-02-15,15000.00,15000.00,Advance,"Development Program",
2017-2018,P4,"The Film Farm Inc.",Toronto,Ontario,Canada,"The Vegas",English,Drama,2018-02-15,15000.00,15000.00,Advance,"Development Program",
2017-2018,P3,"Vancouver Web Festival Presentation Society","New Westminster","British Columbia",Canada,"Vancouver Web Festival",,,2017-11-21,5000.00,5000.00,Contribution,"Promotion Program",
2017-2018,P3,"Terres en vues / Soci�t� pour la diffusion de la culture autochtone",Montreal,Quebec,Canada,"Festival du film et de la vid�o autochtone 2018",,,2017-12-15,16166.00,16166.00,Contribution,"Promotion Program",
2017-2018,P3,"Zoofilms Inc.",Mansonville,Quebec,Canada,"� L'OUEST DE L'�DEN",French,Action/Adventure,2017-10-30,15000.00,15000.00,Advance,"Development Program",
2017-2018,P4,"Groupe Fair-Play Inc.",Montreal,Quebec,Canada,"Ya Basta!",French,Documentary,2018-01-22,15000.00,15000.00,Advance,"Development Program",
2017-2018,P4,"Groupe Fair-Play Inc.",Montreal,Quebec,Canada,"Essai Erreur",French,"Romantic Comedy",2018-01-22,15000.00,15000.00,Advance,"Development Program",
2017-2018,P4,"Films S�ville Inc. (Les)",Montreal,Quebec,Canada,"Pieds nus dans l'aube",French,Drama,2018-03-23,356831.00,356831.00,Advance,"Marketing Program",
2017-2018,P3,"Max Films Inc.",Montreal,Quebec,Canada,"SCELL� PLOMB�",French,Comedy,2017-11-21,15000.00,15000.00,Advance,"Development Program",
2017-2018,P3,"Max Films Inc.",Montreal,Quebec,Canada,"MARGUERITE D'YOUVILLE",French,"Historical Drama",2017-11-21,80000.00,80000.00,Advance,"Development Program",
2017-2018,P3,"Max Films M�dia Inc.",Montreal,Quebec,Canada,"LE FILS DU DICTATEUR",French,Mystery/Crime/Police,2017-10-31,25000.00,25000.00,Advance,"Development Program",
2017-2018,P3,"9108-3006 Qu�bec inc.",Montreal,Quebec,Canada,"Le syndrome de Mozart",French,Drama,2017-11-24,15000.00,15000.00,Advance,"Development Program",
2017-2018,P3,"David Gross Productions Inc.",Toronto,Ontario,Canada,"Inside the O'Briens",English,Drama,2017-11-14,100000.00,100000.00,Advance,"Development Program",
2017-2018,P3,"Reality Distortion Field Inc.",Vancouver,"British Columbia",Canada,Frozen,English,Drama,2017-11-06,15000.00,15000.00,Advance,"Development Program",
2017-2018,P3,"Vortex Comics Incorporated",Toronto,Ontario,Canada,"Queen of Skulls",English,"Historical Drama",2017-11-02,15000.00,15000.00,Advance,"Development Program",
2017-2018,P4,"Caravane Films Productions",Chicoutimi,Quebec,Canada,"Festival REGARD / March� du court",,,2018-03-13,62159.00,62159.00,Contribution,"Promotion Program",
2017-2018,P4,"Sienna Films Inc.",Toronto,Ontario,Canada,"Take Me To Church",English,Comedy,2018-01-18,15000.00,15000.00,Advance,"Development Program",
2017-2018,P4,"Sienna Films Inc.",Toronto,Ontario,Canada,Forgotten,English,Drama,2018-01-18,15000.00,15000.00,Advance,"Development Program",
2017-2018,P3,"Microscope Inc.",Montreal,Quebec,Canada,"Les enfants du large",French,Documentary,2017-11-29,15000.00,15000.00,Advance,"Development Program",
2017-2018,P3,"Microscope Inc.",Montreal,Quebec,Canada,"My Salinger Year",English,Drama,2017-11-29,57500.00,57500.00,Advance,"Development Program",
2017-2018,P3,"Microscope Inc.",Montreal,Quebec,Canada,"Les oiseaux ivres",French,Drama,2017-11-29,40000.00,40000.00,Advance,"Development Program",
2017-2018,P3,"Microscope Inc.",Montreal,Quebec,Canada,"Midnight King",English,"Science fiction/Fantasy/Tale",2017-11-29,34000.00,34000.00,Advance,"Development Program",
2017-2018,P3,"Microscope Inc.",Montreal,Quebec,Canada,Alfred,French,"Science fiction/Fantasy/Tale",2017-11-29,29500.00,29500.00,Advance,"Development Program",
2017-2018,P3,"Microscope Inc.",Montreal,Quebec,Canada,"Les b�tes",French,"Science fiction/Fantasy/Tale",2017-11-29,39000.00,39000.00,Advance,"Development Program",
2017-2018,P4,"Films Vision 4 Inc.",Montreal,Quebec,Canada,Em�,French,Comedy,2018-01-11,15000.00,15000.00,Advance,"Development Program",
2017-2018,P4,"Films Vision 4 Inc.",Montreal,Quebec,Canada,"Plague Angel",English,Drama,2018-01-11,15000.00,15000.00,Advance,"Development Program",
2017-2018,P4,"Films Vision 4 Inc.",Montreal,Quebec,Canada,"On va se faire des enfants",French,Drama,2018-01-11,25000.00,25000.00,Advance,"Development Program",
2017-2018,P3,"GROUPE PVP INC.",Matane,Quebec,Canada,NEELAN,French,"Science fiction/Fantasy/Tale",2017-11-01,20000.00,20000.00,Advance,"Development Program",
2017-2018,P3,"Pitchblack Pictures Inc.",Burnaby,"British Columbia",Canada,"The Invasion of Erin Whittaker",English,Action/Adventure,2017-12-12,15000.00,15000.00,Advance,"Development Program",
2017-2018,P3,"P�riph�ria Productions Inc.",Montreal,Quebec,Canada,"LIGHT OF UNGAVA",English,Drama,2017-11-02,15000.00,15000.00,Advance,"Development Program",
2017-2018,P3,"First Take Entertainment Ltd.",Oakville,Ontario,Canada,"Lions of the Sea",English,"Historical Drama",2017-11-24,40000.00,40000.00,Advance,"Development Program",
2017-2018,P3,"Aiken Heart Films Inc.",Toronto,Ontario,Canada,"Boring Girls",English,Drama,2017-12-22,15000.00,15000.00,Advance,"Development Program",
2017-2018,P3,"Aiken Heart Films Inc.",Toronto,Ontario,Canada,"The Well",English,Drama,2017-12-22,15000.00,15000.00,Advance,"Development Program",
2017-2018,P3,"Full Regalia Enterprises Inc.",Gibsons,"British Columbia",Canada,#memorymaker,English,Thriller,2017-12-06,15000.00,15000.00,Advance,"Development Program",
2017-2018,P3,"julijette inc.",Winnipeg,Manitoba,Canada,"Music on Mars",English,Documentary,2017-11-22,20000.00,20000.00,Advance,"Development Program",
2017-2018,P3,"Microclimat Films inc.",Montreal,Quebec,Canada,Bootlegger,French,Drama,2017-12-19,15000.00,15000.00,Advance,"Development Program",
2017-2018,P3,"Microclimat Films inc.",Montreal,Quebec,Canada,Halmoni,French,Drama,2017-12-19,15000.00,15000.00,Advance,"Development Program",
2017-2018,P3,"Microclimat Films inc.",Montreal,Quebec,Canada,"Le Train",French,"Science fiction/Fantasy/Tale",2017-12-19,15000.00,15000.00,Advance,"Development Program",
2017-2018,P3,"Picture Plant Limited",Lunenburg,"Nova Scotia",Canada,"Love Hurts",English,Drama,2017-12-20,15000.00,15000.00,Advance,"Development Program",
2017-2018,P3,"Picture Plant Limited",Lunenburg,"Nova Scotia",Canada,"Monica's News",English,Drama,2017-12-20,15000.00,15000.00,Advance,"Development Program",
2017-2018,P3,"Picture Plant Limited",Lunenburg,"Nova Scotia",Canada,"The Bystander Effect",English,Drama,2017-12-20,15000.00,15000.00,Advance,"Development Program",
2017-2018,P4,"Bunk 11 Pictures Inc.",Ottawa,Ontario,Canada,Blackwood,English,Horror,2018-01-10,15000.00,15000.00,Advance,"Development Program",
2017-2018,P4,"Bunk 11 Pictures Inc.",Ottawa,Ontario,Canada,Collider,English,"Science fiction/Fantasy/Tale",2018-01-10,15000.00,15000.00,Advance,"Development Program",
2017-2018,P3,"Chaos A Film Company Inc.",Calgary,Alberta,Canada,"Chasing Justice",English,Drama,2017-11-24,15000.00,15000.00,Advance,"Development Program",
2017-2018,P3,"Couzin Films Inc.",Montreal,Quebec,Canada,L2f2,French,Drama,2017-12-13,15000.00,15000.00,Advance,"Development Program",
2017-2018,P3,"Couzin Films Inc.",Montreal,Quebec,Canada,"The Estate",English,Horror,2017-12-13,15000.00,15000.00,Advance,"Development Program",
2017-2018,P3,"Vroom Productions Inc.",Dewittville,Quebec,Canada,Prude,English,Drama,2017-11-07,15000.00,15000.00,Advance,"Development Program",
2017-2018,P3,"White Eagle Entertainment Inc.",Toronto,Ontario,Canada,"12 Days",English,Drama,2017-11-03,15000.00,15000.00,Advance,"Development Program",
2017-2018,P3,"Neophyte Productions Inc.",Toronto,Ontario,Canada,"Stage 3",English,Thriller,2017-11-10,15000.00,15000.00,Advance,"Development Program",
2017-2018,P4,"Lost Time Media Inc.",Toronto,Ontario,Canada,"No Visible Trauma",English,Documentary,2018-01-03,1500.00,1500.00,Contribution,"International Marketing Program",
2017-2018,P3,"Bravo Charlie inc.",Montreal,Quebec,Canada,All�geances,French,Drama,2017-11-08,15000.00,15000.00,Advance,"Development Program",
2017-2018,P3,"FILMARTO INC.",Montreal,Quebec,Canada,LNI,French,Comedy,2017-11-21,25000.00,25000.00,Advance,"Development Program",
2017-2018,P3,"FILMARTO INC.",Montreal,Quebec,Canada,"SAM BOT",French,Comedy,2017-11-21,15000.00,15000.00,Advance,"Development Program",
2017-2018,P3,"6710875 Canada inc.",Gatineau,Quebec,Canada,Fleeting,English,Drama,2017-11-02,15000.00,15000.00,Advance,"Development Program",
2017-2018,P4,"January Films Ltd.",Toronto,Ontario,Canada,"Untitled Tasha Hubbard Project",English,Drama,2018-01-12,15000.00,15000.00,Advance,"Development Program",
2017-2018,P4,"January Films Ltd.",Toronto,Ontario,Canada,"Untitled Will Schneider Project",English,"Science fiction/Fantasy/Tale",2018-01-12,15000.00,15000.00,Advance,"Development Program",
2017-2018,P3,"Cave Painting Pictures Inc.",Toronto,Ontario,Canada,"Hot Damn",English,Action/Adventure,2017-11-20,15000.00,15000.00,Advance,"Development Program",
2017-2018,P3,"Alcina Pictures Ltd.",Toronto,Ontario,Canada,"The VENERABLE",English,Horror,2017-12-18,15000.00,15000.00,Advance,"Development Program",
2017-2018,P3,"Alcina Pictures Ltd.",Toronto,Ontario,Canada,"The MYSTERIES OF ICEFISHING",English,Thriller,2017-12-18,15000.00,15000.00,Advance,"Development Program",
2017-2018,P3,"Copperheart Entertainment Inc.",Toronto,Ontario,Canada,"BLURRED LINES",English,"Science fiction/Fantasy/Tale",2017-11-27,35000.00,35000.00,Advance,"Development Program",
2017-2018,P4,"Serendipity Point Films Inc.",Toronto,Ontario,Canada,"7 Weeks (aka LIMINAL)",English,Drama,2018-03-22,73000.00,73000.00,Advance,"Development Program",
2017-2018,P4,"Serendipity Point Films Inc.",Toronto,Ontario,Canada,Shot-Blue,English,Drama,2018-03-22,83320.00,83320.00,Advance,"Development Program",
2017-2018,P4,"Serendipity Point Films Inc.",Toronto,Ontario,Canada,"The Bike Ride",English,Drama,2018-03-22,43680.00,43680.00,Advance,"Development Program",
2017-2018,P3,"Films du Rapide-Blanc Inc.",Montreal,Quebec,Canada,"WHAT MAKES A MOUNTAIN",English,Musical,2017-11-28,15000.00,15000.00,Advance,"Development Program",
2017-2018,P3,"Amazing Factory Productions Inc.",Vancouver,"British Columbia",Canada,Endling,English,Drama,2017-11-20,15000.00,15000.00,Advance,"Development Program",
2017-2018,P3,"9219-3010 Qu�bec Inc.",Montreal,Quebec,Canada,Hivernia,French,Drama,2017-11-07,15000.00,15000.00,Advance,"Development Program",
2017-2018,P3,"Carte Blanche Films Inc.",Ottawa,Ontario,Canada,"La Swtich",French,Drama,2017-12-20,15000.00,15000.00,Advance,"Development Program",
2017-2018,P3,"Eye Steel Film Inc.",Montreal,Quebec,Canada,"Internet of Shit",English,Documentary,2017-11-14,15000.00,15000.00,Advance,"Development Program",
2017-2018,P3,"Zapruder Films Inc.",Toronto,Ontario,Canada,"The D�pplegang",English,Comedy,2017-11-21,15000.00,15000.00,Advance,"Development Program",
2017-2018,P3,"Forum Films 2005 Inc.",Montreal,Quebec,Canada,Cocktail,French,Comedy,2017-11-09,15000.00,15000.00,Advance,"Development Program",
2017-2018,P3,"Forum Films 2005 Inc.",Montreal,Quebec,Canada,"""Z�nith (aka """"Le chien"""")""",French,"Historical Drama",2017-11-09,15000.00,15000.00,Advance,"Development Program",
2017-2018,P4,"Hawkeye Pictures Inc.",Toronto,Ontario,Canada,"The Sleepover",English,Action/Adventure,2018-01-15,15000.00,15000.00,Advance,"Development Program",
2017-2018,P4,"Hawkeye Pictures Inc.",Toronto,Ontario,Canada,Plunder,English,Comedy,2018-01-15,15000.00,15000.00,Advance,"Development Program",
2017-2018,P3,"Trilight Entertainment Inc.",Calgary,Alberta,Canada,"The Gordian Knot",English,Thriller,2017-11-22,15000.00,15000.00,Advance,"Development Program",
2017-2018,P3,"Karma Film Inc.",Saskatoon,Saskatchewan,Canada,"The Truth About Monsters",English,Action/Adventure,2017-12-21,15000.00,15000.00,Advance,"Development Program",
2017-2018,P3,"Karma Film Inc.",Saskatoon,Saskatchewan,Canada,Boyfriend,English,Drama,2017-12-21,15000.00,15000.00,Advance,"Development Program",
2017-2018,P3,"Karma Film Inc.",Saskatoon,Saskatchewan,Canada,"The Power of Nothingness",English,Mystery/Crime/Police,2017-12-21,15000.00,15000.00,Advance,"Development Program",
2017-2018,P3,"Idlewild Films Limited",Halifax,"Nova Scotia",Canada,"Black Coast",English,Thriller,2017-11-24,15000.00,15000.00,Advance,"Development Program",
2017-2018,P3,"Snitch Pictures Inc.",Toronto,Ontario,Canada,"WOMEN OF THE KLONDIKE",English,"Historical Drama",2017-12-18,15000.00,15000.00,Advance,"Development Program",
2017-2018,P4,"Rhombus Media Inc.",Toronto,Ontario,Canada,"Clifton Hill",English,Drama,2018-01-26,66640.00,66640.00,Advance,"Development Program",
2017-2018,P4,"Rhombus Media Inc.",Toronto,Ontario,Canada,"Losing The Signal",English,Drama,2018-01-26,109620.00,109620.00,Advance,"Development Program",
2017-2018,P4,"Rhombus Media Inc.",Toronto,Ontario,Canada,"The Furies",English,Drama,2018-01-26,23520.00,23520.00,Advance,"Development Program",
2017-2018,P3,"Black Dog Films Inc.",Halifax,"Nova Scotia",Canada,CELL,English,Thriller,2017-11-22,15000.00,15000.00,Advance,"Development Program",
2017-2018,P3,"Echo Media Inc.",Montreal,Quebec,Canada,"RED SCARE",English,Thriller,2017-11-22,15000.00,15000.00,Advance,"Development Program",
2017-2018,P4,"Mad Samurai Productions Inc.",Richmond,"British Columbia",Canada,"Beyond The Limit",English,Action/Adventure,2018-01-04,15000.00,15000.00,Advance,"Development Program",
2017-2018,P4,"Mad Samurai Productions Inc.",Richmond,"British Columbia",Canada,Smashed,English,Thriller,2018-01-04,20000.00,20000.00,Advance,"Development Program",
2017-2018,P3,"Euclid 431 Pictures Inc.",Toronto,Ontario,Canada,"Shakespeare Saved My Life (aka Breaking Out)",English,Drama,2017-12-20,20000.00,20000.00,Advance,"Development Program",
2017-2018,P4,"Inferno Pictures Inc.",Winnipeg,Manitoba,Canada,"Checkered Flag",English,Comedy,2018-03-26,20000.00,20000.00,Advance,"Development Program",
2017-2018,P4,"Inferno Pictures Inc.",Winnipeg,Manitoba,Canada,"All The Better",English,Drama,2018-03-26,15000.00,15000.00,Advance,"Development Program",
2017-2018,P4,"Inferno Pictures Inc.",Winnipeg,Manitoba,Canada,"Untitled Roger Avary Refugee Project",English,Drama,2018-03-26,20000.00,20000.00,Advance,"Development Program",
2017-2018,P4,"Inferno Pictures Inc.",Winnipeg,Manitoba,Canada,"The Fruit Machine",English,"Historical Drama",2018-03-26,15000.00,15000.00,Advance,"Development Program",
2017-2018,P4,"Crawlspace Films, Inc.","St. John's",Newfoundland/Labrador,Canada,"Sweet Angel Baby",English,Drama,2018-01-04,15000.00,15000.00,Advance,"Development Program",
2017-2018,P4,"Crawlspace Films, Inc.","St. John's",Newfoundland/Labrador,Canada,"The Broken Hearts of the Dead",English,Horror,2018-01-04,15000.00,15000.00,Advance,"Development Program",
2017-2018,P4,"Crawlspace Films, Inc.","St. John's",Newfoundland/Labrador,Canada,Firestarter,English,Thriller,2018-01-04,15000.00,15000.00,Advance,"Development Program",
2017-2018,P4,"Connections Productions Inc.",Bedford,"Nova Scotia",Canada,"Seth Rogan Hates X-Mas!",English,Comedy,2018-01-31,15000.00,15000.00,Advance,"Development Program",
2017-2018,P3,"Solo Productions Inc.",Toronto,Ontario,Canada,"Armstrong's War",English,Drama,2017-12-14,15000.00,15000.00,Advance,"Development Program",
2017-2018,P3,"Solo Productions Inc.",Toronto,Ontario,Canada,"Low Water",English,Thriller,2017-12-14,15000.00,15000.00,Advance,"Development Program",
2017-2018,P4,"Lithium Studios Productions Inc.",Toronto,Ontario,Canada,"I Will Not Go Quietly",English,Drama,2018-03-09,15000.00,15000.00,Advance,"Development Program",
2017-2018,P3,"A71 Productions Inc.",Toronto,Ontario,Canada,"Canadian Indie Film Series",,,2017-11-17,25000.00,25000.00,Contribution,"Promotion Program",
2017-2018,P3,"DCP Mystery Arts Inc.",Toronto,Ontario,Canada,"Dead of Winter",English,Horror,2017-11-20,55000.00,55000.00,Advance,"Development Program",
2017-2018,P3,"DCP Mystery Arts Inc.",Toronto,Ontario,Canada,"Vidocq: The World's First Detective",English,Mystery/Crime/Police,2017-11-20,75600.00,75600.00,Advance,"Development Program",
2017-2018,P3,"DCP Mystery Arts Inc.",Toronto,Ontario,Canada,Trilby,English,"Romantic Comedy",2017-11-20,55000.00,55000.00,Advance,"Development Program",
2017-2018,P4,"Buffalo Gal Pictures Inc.",Winnipeg,Manitoba,Canada,"The Cottage",English,Drama,2018-03-21,15000.00,15000.00,Advance,"Development Program",
2017-2018,P4,"Buffalo Gal Pictures Inc.",Winnipeg,Manitoba,Canada,Coppermine,English,"Historical Drama",2018-03-21,25000.00,25000.00,Advance,"Development Program",
2017-2018,P4,"Buffalo Gal Pictures Inc.",Winnipeg,Manitoba,Canada,"Evening Chorus",English,"Historical Drama",2018-03-21,40000.00,40000.00,Advance,"Development Program",
2017-2018,P4,"Buffalo Gal Pictures Inc.",Winnipeg,Manitoba,Canada,"Hunter Hunter",English,Thriller,2018-03-21,15000.00,15000.00,Advance,"Development Program",
2017-2018,P3,"Raven Banner Entertainment Inc.",Toronto,Ontario,Canada,"The Bakaak",English,Horror,2017-11-20,15000.00,15000.00,Advance,"Development Program",
2017-2018,P3,"Productions Caramel Film Inc.",Montreal,Quebec,Canada,"Monster Mash",English,Comedy,2017-11-28,22982.00,22982.00,Advance,"Development Program",
2017-2018,P3,"Productions Caramel Film Inc.",Montreal,Quebec,Canada,"Fred a faim",French,Comedy,2017-11-28,15036.00,15036.00,Advance,"Development Program",
2017-2018,P3,"Productions Caramel Film Inc.",Montreal,Quebec,Canada,"Jimmy Z",French,Comedy,2017-11-28,36535.00,36535.00,Advance,"Development Program",
2017-2018,P3,"Productions Caramel Film Inc.",Montreal,Quebec,Canada,T�l�s�rie,French,Comedy,2017-11-28,61232.00,61232.00,Advance,"Development Program",
2017-2018,P3,"Productions Caramel Film Inc.",Montreal,Quebec,Canada,Alibi,French,Mystery/Crime/Police,2017-11-28,64215.00,64215.00,Advance,"Development Program",
2017-2018,P3,"CarpeDiem Film & TV Inc.",Montreal,Quebec,Canada,"Christmas Chaos",English,Comedy,2017-11-21,25000.00,25000.00,Advance,"Development Program",
2017-2018,P3,"CarpeDiem Film & TV Inc.",Montreal,Quebec,Canada,"Esprit de famille  (Nouveau titre de travail: Bouh!)",English,Comedy,2017-11-21,45000.00,45000.00,Advance,"Development Program",
2017-2018,P4,"High Definition Pictures Inc.",Winnipeg,Manitoba,Canada,"Old Magic",English,Drama,2018-01-09,15000.00,15000.00,Advance,"Development Program",
2017-2018,P4,"High Definition Pictures Inc.",Winnipeg,Manitoba,Canada,Uprising,English,Mystery/Crime/Police,2018-01-09,15000.00,15000.00,Advance,"Development Program",
2017-2018,P4,"Item 7 Inc.",Montreal,Quebec,Canada,"The Traveler",English,Comedy,2018-03-20,21000.00,21000.00,Advance,"Development Program",
2017-2018,P4,"Item 7 Inc.",Montreal,Quebec,Canada,"Le chef et la douani�re",French,Comedy,2018-03-20,15000.00,15000.00,Advance,"Development Program",
2017-2018,P4,"Item 7 Inc.",Montreal,Quebec,Canada,"A Dark and Broken Heart",English,Drama,2018-03-20,42000.00,42000.00,Advance,"Development Program",
2017-2018,P4,"Item 7 Inc.",Montreal,Quebec,Canada,"Inherited Night",English,Drama,2018-03-20,15000.00,15000.00,Advance,"Development Program",
2017-2018,P4,"Item 7 Inc.",Montreal,Quebec,Canada,�chou�,French,Drama,2018-03-20,15000.00,15000.00,Advance,"Development Program",
2017-2018,P4,"Item 7 Inc.",Montreal,Quebec,Canada,"Les jours heureux",French,Drama,2018-03-20,28000.00,28000.00,Advance,"Development Program",
2017-2018,P4,"Item 7 Inc.",Montreal,Quebec,Canada,"The War of the Worlds",English,"Science fiction/Fantasy/Tale",2018-03-20,44000.00,44000.00,Advance,"Development Program",
2017-2018,P3,"H Is For Productions Inc.",Toronto,Ontario,Canada,"Lac Megantic",English,Drama,2017-11-22,15000.00,15000.00,Advance,"Development Program",
2017-2018,P3,"Les Productions Isca Inc.",Montreal,Quebec,Canada,"Humain, humus, humilit�",French,Documentary,2017-12-21,15000.00,15000.00,Advance,"Development Program",
2017-2018,P3,"Les Productions Isca Inc.",Montreal,Quebec,Canada,Witaskewin,French,Documentary,2017-12-21,15000.00,15000.00,Advance,"Development Program",
2017-2018,P3,"V�locit� International inc.",Quebec,Quebec,Canada,"Le petit nouveau",French,Comedy,2017-12-15,20000.00,20000.00,Advance,"Development Program",
2017-2018,P3,"V�locit� International inc.",Quebec,Quebec,Canada,"Mon ami l'astronaute, retour sur terre",French,Documentary,2017-12-15,15000.00,15000.00,Advance,"Development Program",
2017-2018,P4,"Screen Siren Pictures Inc.",Vancouver,"British Columbia",Canada,"The Widows' Club",English,Comedy,2018-03-27,39872.00,39872.00,Advance,"Development Program",
2017-2018,P4,"Screen Siren Pictures Inc.",Vancouver,"British Columbia",Canada,"Out of the Barren",English,Drama,2018-03-27,17920.00,17920.00,Advance,"Development Program",
2017-2018,P4,"Screen Siren Pictures Inc.",Vancouver,"British Columbia",Canada,"The Keeper",English,"Historical Drama",2018-03-27,31484.00,31484.00,Advance,"Development Program",
2017-2018,P3,"Optic Nerve Films Inc.",Vancouver,"British Columbia",Canada,"The Killer Whale Who Changed the World",English,Drama,2017-11-23,15000.00,15000.00,Advance,"Development Program",
2017-2018,P4,"Holdfast Pictures Inc.",Halifax,"Nova Scotia",Canada,"Birds In Fall",English,Drama,2018-01-09,15000.00,15000.00,Advance,"Development Program",
2017-2018,P4,"Holdfast Pictures Inc.",Halifax,"Nova Scotia",Canada,"Lunenburg County Line",English,Drama,2018-01-09,15000.00,15000.00,Advance,"Development Program",
2017-2018,P4,"Holdfast Pictures Inc.",Halifax,"Nova Scotia",Canada,"Company Town",English,"Historical Drama",2018-01-09,20000.00,20000.00,Advance,"Development Program",
2017-2018,P3,"Film Forge Productions Inc.",Toronto,Ontario,Canada,"Untitled Forest Project",English,Drama,2017-12-21,25000.00,25000.00,Advance,"Development Program",
2017-2018,P3,"Productions l'unit� centrale inc.",Montreal,Quebec,Canada,Rapace,French,Drama,2017-12-12,15000.00,15000.00,Advance,"Development Program",
2017-2018,P4,"White Pine Pictures Inc.",Toronto,Ontario,Canada,"Untitled Margaret Atwood Project",English,Documentary,2018-02-05,15000.00,15000.00,Advance,"Development Program",
2017-2018,P4,"White Pine Pictures Inc.",Toronto,Ontario,Canada,"The Passage",English,Drama,2018-02-05,15000.00,15000.00,Advance,"Development Program",
2017-2018,P4,"White Pine Pictures Inc.",Toronto,Ontario,Canada,"The Projectionist",English,"Historical Drama",2018-02-05,15000.00,15000.00,Advance,"Development Program",
2017-2018,P4,"Darius Films Inc.",Toronto,Ontario,Canada,"Evil Fire",English,Drama,2018-01-30,15000.00,15000.00,Advance,"Development Program",
2017-2018,P4,"Darius Films Inc.",Toronto,Ontario,Canada,Zephyr,English,Drama,2018-01-30,15000.00,15000.00,Advance,"Development Program",
2017-2018,P4,"Darius Films Inc.",Toronto,Ontario,Canada,"All My Heroes Are Dead",English,Horror,2018-01-30,20000.00,20000.00,Advance,"Development Program",
2017-2018,P4,"Darius Films Inc.",Toronto,Ontario,Canada,"Sleeping Dog Lie",English,Western,2018-01-30,20000.00,20000.00,Advance,"Development Program",
2017-2018,P4,"Scythia Films Inc.",Toronto,Ontario,Canada,Slash/Back,English,Action/Adventure,2018-01-10,15000.00,15000.00,Advance,"Development Program",
2017-2018,P4,"Scythia Films Inc.",Toronto,Ontario,Canada,Alterra,English,"Science fiction/Fantasy/Tale",2018-01-10,15000.00,15000.00,Advance,"Development Program",
2017-2018,P4,"Manis Film Consultants Inc.",Toronto,Ontario,Canada,"Arizona Bark",English,Comedy,2018-01-11,15000.00,15000.00,Advance,"Development Program",
2017-2018,P3,"TimeLapse Pictures Productions Inc.",Toronto,Ontario,Canada,"The Carpenter's Apprentice",English,"Science fiction/Fantasy/Tale",2017-12-05,15000.00,15000.00,Advance,"Development Program",
2017-2018,P4,"Possibles M�dia inc.",Montreal,Quebec,Canada,"Bleuets Sauvages",French,Action/Adventure,2018-02-09,15000.00,15000.00,Advance,"Development Program",
2017-2018,P4,"Possibles M�dia inc.",Montreal,Quebec,Canada,"La Ballade d'entre deux Mondes",French,"Historical Drama",2018-02-09,15000.00,15000.00,Advance,"Development Program",
2017-2018,P4,"Honalee Productions Inc.",Vancouver,"British Columbia",Canada,"Jack of Diamonds",English,"Historical Drama",2018-01-23,20000.00,20000.00,Advance,"Development Program",
2017-2018,P3,"Circle Blue Films Inc.",Mississauga,Ontario,Canada,"Crazy House",English,Drama,2017-12-08,15000.00,15000.00,Advance,"Development Program",
2017-2018,P4,"Alyson Richards Productions Inc.",Hamilton,Ontario,Canada,"The Retreat",English,Horror,2018-02-02,15000.00,15000.00,Advance,"Development Program",
2017-2018,P4,"Axia Films inc.",Montreal,Quebec,Canada,"Y'EST OU LE PARADIS",French,Drama,2018-02-02,40000.00,40000.00,Advance,"Marketing Program",
2017-2018,P4,"Productions Couzin Inc",Montreal,Quebec,Canada,"R�pertoire des villes disparues",French,"Science fiction/Fantasy/Tale",2018-03-09,850000.00,850000.00,Investment,"Production Program",
2017-2018,P4,"Films S�ville Inc. (Les)",Montreal,Quebec,Canada,"Double Peine",French,Documentary,2018-03-23,45305.00,45305.00,Advance,"Marketing Program",
2017-2018,P3,"Hot Docs",Toronto,Ontario,Canada,"HD Festival and Market",,,2017-11-24,350000.00,350000.00,Contribution,"Promotion Program",
2017-2018,P3,"Yukon Film Society",Whitehorse,Yukon,Canada,"Available Light Film Festival",,,2017-11-17,8813.00,8813.00,Contribution,"Promotion Program",
2017-2018,P3,"Across Borders Media Inc.",Victoria,"British Columbia",Canada,"Media that Matters",,,2017-11-21,5000.00,5000.00,Contribution,"Promotion Program",
2017-2018,P3,"Acad�mie canadienne du cin�ma et de la t�l�vision (section Qu�bec) Inc.",Montreal,Quebec,Canada,"Gala des Prix G�meaux et Party des 1000 2017",,,2017-12-07,136250.00,136250.00,Contribution,"Promotion Program",
2017-2018,P4,"Maison 4:3 Inc.",Montreal,Quebec,Canada,"Les faux tatouages",French,Drama,2018-03-05,37344.00,37344.00,Advance,"Marketing Program",
2017-2018,P4,"Festival du film de l'Outaouais",Montreal,Quebec,Canada,"Festival du film de l'Outaouais",,,2018-01-04,26069.00,26069.00,Contribution,"Promotion Program",
2017-2018,P4,"Canadian Film Centre",Toronto,Ontario,Canada,"Telefilm Canada Feature Comedy Exchange",,,2018-02-09,175000.00,175000.00,Contribution,"Promotion Program",
2017-2018,P4,"Women In View",Toronto,Ontario,Canada," Five in Focus 2017-18 and Roll Call (website)",,,2018-01-04,20000.00,20000.00,Contribution,"Promotion Program",
2017-2018,P4,"Films Christal, s.e.c.(Les)",Montreal,Quebec,Canada,"Nous sommes les autres",French,Drama,2018-03-23,73952.00,73952.00,Advance,"Marketing Program",
2017-2018,P3,Cin�franco,Toronto,Ontario,Canada,CIN�FRANCO,,,2017-12-20,10815.00,10815.00,Contribution,"Promotion Program",
2017-2018,P3,"Serendipity Point Films Inc.",Toronto,Ontario,Canada,"Song of Names",English,Drama,2017-12-18,500000.00,500000.00,Advance,"Production Program",
2017-2018,P3,"Reel to Real: A Celebration Of Moving Images For Youth Society",Vancouver,"British Columbia",Canada,"Reel 2 Real International Film Festival for Youth",,,2017-11-27,7528.00,7528.00,Contribution,"Promotion Program",
2017-2018,P3,"Canada Wild Productions Ltd.",Vancouver,"British Columbia",Canada,"A Place Called  Chiapas",,,2017-12-01,14200.00,14200.00,Contribution,"Promotion Program",
2017-2018,P4,"Unknown Pictures Ltd.",Edmonton,Alberta,Canada,"Romantic Road",English,Documentary,2018-03-23,1500.00,1500.00,Contribution,"International Marketing Program",
2017-2018,P3,"Cin� Qu�bec",Boucherville,Quebec,Canada,"Cin� Qu�bec",,,2017-12-15,36048.00,36048.00,Contribution,"Promotion Program",
2017-2018,P4,"The Documentary Media Society",Vancouver,"British Columbia",Canada,"DOXA Documentary Film Festival (2018)",,,2018-01-08,10815.00,10815.00,Contribution,"Promotion Program",
2017-2018,P3,"Les Productions des Films de l'Autre Inc.",Montreal,Quebec,Canada,"D�mons (Les)",French,Drama,2017-12-06,1500.00,1500.00,Contribution,"International Marketing Program",
2017-2018,P3,"Fondation Fabienne Colas",Saint-Lambert,Quebec,Canada,"Festival International du Film Black de Montr�al",,,2017-11-27,22500.00,22500.00,Contribution,"Promotion Program",
2017-2018,P4,"Maison 4:3 Inc.",Montreal,Quebec,Canada,"Isla Blanca",French,Drama,2018-03-05,25077.00,25077.00,Advance,"Marketing Program",
2017-2018,P4,"Charles Taylor Theatre & Media Arts Association",Dartmouth,"Nova Scotia",Canada,"Emerging Lens Cultural Film Festival",,,2018-01-10,5000.00,5000.00,Contribution,"Promotion Program",
2017-2018,P3,"Femmes du cinema, de la television et des m�dias num�riques",Montreal,Quebec,Canada,"FCTMN 2017",,,2017-12-18,15000.00,15000.00,Contribution,"Promotion Program",
2017-2018,P4,"Level Film Inc.",Toronto,Ontario,Canada,"The Death (and Life) of Carl Naardlinger",English,Comedy,2018-03-13,25161.00,25161.00,Advance,"Marketing Program",
2017-2018,P3,"Women In Film and Television - Atlantic",Halifax,"Nova Scotia",Canada,"Women Making Waves Conference 2017",,,2017-12-01,5000.00,5000.00,Contribution,"Promotion Program",
2017-2018,P3,"9097-4767 Qu�bec Inc.",Montreal,Quebec,Canada,"Sur la lune de nickel",French,Documentary,2017-12-06,1500.00,1500.00,Contribution,"International Marketing Program",
2017-2018,P4,"Global Visions Festival Society",Edmonton,Alberta,Canada,NORTHWESTFEST,,,2018-01-12,5000.00,5000.00,Contribution,"Promotion Program",
2017-2018,P4,"Les Productions Dionysos inc. / Productions Dionysos inc.",Quebec,Quebec,Canada,"L'Enfant du Nord",French,Action/Adventure,2018-02-20,15000.00,15000.00,Advance,"Development Program",
2017-2018,P4,"Rezolution Pictures International Inc.",Outremont,Quebec,Canada,"White Privilege",English,Documentary,2018-02-13,15000.00,15000.00,Advance,"Development Program",
2017-2018,P4,"ZMA Productions Inc.",Montreal,Quebec,Canada,"Code S",French,Drama,2018-02-07,15000.00,15000.00,Advance,"Development Program",
2017-2018,P4,"8448809 Canada inc.",Montreal,Quebec,Canada,"Crime Blanc",French,Mystery/Crime/Police,2018-02-16,15000.00,15000.00,Advance,"Development Program",
2017-2018,P4,"Banger Films Inc.",Toronto,Ontario,Canada,"Untitled Emily Carr Project",English,"Historical Drama",2018-01-31,15000.00,15000.00,Advance,"Development Program",
2017-2018,P4,"Montefiore Films Inc.",Sudbury,Ontario,Canada,"The Devil You Know",English,Thriller,2018-03-05,15000.00,15000.00,Advance,"Development Program",
2017-2018,P4,"All Soules Films Inc.",Toronto,Ontario,Canada,"IF LOOKS COULD KILL",English,Drama,2018-02-14,15000.00,15000.00,Advance,"Development Program",
2017-2018,P4,"Bellefeuille Production Lt�e",Moncton,"New Brunswick",Canada,Acadie-France,French,Documentary,2018-02-12,15000.00,15000.00,Advance,"Development Program",
2017-2018,P4,"Collingwood Management Inc.",Burnaby,"British Columbia",Canada,"Pain Management Inc.",English,Documentary,2018-01-26,15000.00,15000.00,Advance,"Development Program",
2017-2018,P4,"Winnipeg Film Group Inc.",Winnipeg,Manitoba,Canada,"Gimme Some Truth Documentary Festival",,,2018-03-06,3500.00,3500.00,Contribution,"Promotion Program",
2017-2018,P4,"Slow Motion Food Film Fest Society",Wolfville,"Nova Scotia",Canada,"Devour! The Food Film Fest",,,2018-01-26,7500.00,7500.00,Contribution,"Promotion Program",
2017-2018,P4,"Jill and Jackfish Productions Inc.",Yellowknife,"North West Territories",Canada,Delphine,English,"Science fiction/Fantasy/Tale",2018-01-29,15000.00,15000.00,Advance,"Development Program",
2017-2018,P3,"FIRST WEEKEND CLUB FILM SOCIETY","North Vancouver","British Columbia",Canada,"First Weekend Club Cinemaholics' Filmmaker Interviews",,,2017-12-18,2000.00,2000.00,Contribution,"Promotion Program",
2017-2018,P4,"1936331 ONTARIO INC.",Toronto,Ontario,Canada,FINALE,English,Drama,2018-01-29,15000.00,15000.00,Advance,"Development Program",
2017-2018,P3,"Calgary Underground Film Festival Society",Calgary,Alberta,Canada,"Calgary Underground Film Festival - CUFF",,,2017-12-22,5000.00,5000.00,Contribution,"Promotion Program",
2017-2018,P3,"Meridian Artists Inc.",Toronto,Ontario,Canada,"2018 Toronto Screenwriting Conference (TSC)",,,2017-12-20,8000.00,8000.00,Contribution,"Promotion Program",
2017-2018,P4,"Story Money Impact Foundation",Vancouver,"British Columbia",Canada,"Good Pitch",,,2018-01-31,25000.00,25000.00,Contribution,"Promotion Program",
2017-2018,P4,"Productions Ajoup� Lt�e (Les)",Longueuil,Quebec,Canada,"SUPERS PR�DATEURS",French,Mystery/Crime/Police,2018-02-07,15000.00,15000.00,Advance,"Development Program",
2017-2018,P4,"A Film Monkey Production Inc.",Concord,Ontario,Canada,"Kingston Rising",English,"Historical Drama",2018-01-30,15000.00,15000.00,Advance,"Development Program",
2017-2018,P4,"Festival International de Musique POP Montr�al",Montreal,Quebec,Canada,"POP Montreal",,,2018-02-09,15000.00,15000.00,Contribution,"Promotion Program",
2017-2018,P4,"Broken Head Pictures Inc.",Toronto,Ontario,Canada,"The Paved Road",English,Drama,2018-02-14,15000.00,15000.00,Advance,"Development Program",
2017-2018,P4,"The Film And Video Arts Society of Alberta",Edmonton,Alberta,Canada,"FAVA FEST 2018",,,2018-02-14,2500.00,2500.00,Contribution,"Promotion Program",
2017-2018,P4,"D Films Corporation",Toronto,Ontario,Canada,"ROOM FOR RENT",English,Comedy,2018-02-05,81000.00,81000.00,Advance,"Marketing Program",
2017-2018,P4,"Northern Visions Independent Video & Film Association",Toronto,Ontario,Canada,"Images Festival",,,2018-03-19,22784.00,22784.00,Contribution,"Promotion Program",
2017-2018,P4,"8727775 Canada Inc. / Sibelle Productions!","Pouch Cove",Newfoundland/Labrador,Canada,"Sous le Joug",French,Drama,2018-02-21,15000.00,15000.00,Advance,"Development Program",
2017-2018,P4,"Independent Web Series Creators of Canada",Toronto,Ontario,Canada,"T.O. WebFest",,,2018-01-09,5000.00,5000.00,Contribution,"Promotion Program",
2017-2018,P4,"The Inside Out LGBT Film Festival Inc.",Toronto,Ontario,Canada,"Toronto LGBT Film Festival",,,2018-01-10,5000.00,5000.00,Contribution,"Promotion Program",
2017-2018,P4,"Elevation Pictures Corp.",Toronto,Ontario,Canada,"Man Who Invented Christmas, The",English,Drama,2018-02-01,599838.00,599838.00,Advance,"Marketing Program",
2017-2018,P3,"Steady Films Inc.",Vancouver,"British Columbia",Canada,"Never Steady, Never Still",English,Drama,2017-12-18,1500.00,1500.00,Contribution,"International Marketing Program",
2017-2018,P3,"Alberta Media Production Industries  Association (AMPIA)",Edmonton,Alberta,Canada,"AMPIA Professional Development Activities",,,2017-12-19,20000.00,20000.00,Contribution,"Promotion Program",
2017-2018,P4,"D Films Corporation",Toronto,Ontario,Canada,CLARA,English,"Science fiction/Fantasy/Tale",2018-02-12,165656.00,165656.00,Advance,"Marketing Program",
2017-2018,P4,"ON SCREEN MANITOBA INCORPORATED",Winnipeg,Manitoba,Canada,"All Access",,,2018-02-27,17000.00,17000.00,Contribution,"Promotion Program",
2017-2018,P4,"Buffalo Gal Pictures Inc.",Winnipeg,Manitoba,Canada,"Forbidden Room (The)",English,Drama,2018-02-28,1500.00,1500.00,Contribution,"International Marketing Program",
2017-2018,P3,"Vues d'Afrique",Montreal,Quebec,Canada,"Festival international de cin�ma Vues d'Afrique",,,2017-12-20,19859.00,19859.00,Contribution,"Promotion Program",
2017-2018,P4,"Dreamspeakers Festival Society",Edmonton,Alberta,Canada,"Dreamspeakers Film Festival",,,2018-03-07,5000.00,5000.00,Contribution,"Promotion Program",
2017-2018,P4,"Raven Banner Releasing Inc.",Toronto,Ontario,Canada,"Trench 11",English,Thriller,2018-03-27,101310.00,101310.00,Advance,"Marketing Program",
2017-2018,P4,"Max Films Inc.",Montreal,Quebec,Canada,"HOCHELAGA, TERRE DES �MES",French,"Historical Drama",2018-02-08,1000.00,1000.00,Contribution,"International Marketing Program",
2017-2018,P4,"Bunbury Films Inc.",Montreal,Quebec,Canada,"Coke Biker",English,Thriller,2018-02-02,15000.00,15000.00,Advance,"Development Program",
2017-2018,P4,"Raven Banner Releasing Inc.",Toronto,Ontario,Canada,"The Crescent",English,Thriller,2018-03-27,65241.00,65241.00,Advance,"Marketing Program",
2017-2018,P4,"Goodbye Productions Inc.",Vancouver,"British Columbia",Canada,"Bad Seeds",English,Comedy,2018-03-05,15000.00,15000.00,Advance,"Development Program",
2017-2018,P4,"Victory Man Productions Limited",Toronto,Ontario,Canada,Nunavut,English,Action/Adventure,2018-01-25,15000.00,15000.00,Advance,"Development Program",
2017-2018,P4,"0250636 B.C. Ltd.",Vancouver,"British Columbia",Canada,Louise342,English,Drama,2018-01-26,15000.00,15000.00,Advance,"Development Program",
2017-2018,P3,"Intuitive Pictures Inc.",Montreal,Quebec,Canada,"Oslo Diaries (The)",English,Documentary,2017-12-20,14200.00,14200.00,Contribution,"International Marketing Program",
2017-2018,P3,"9341-9315 Qu�bec Inc.",Verdun,Quebec,Canada,"Geek Girls",English,Documentary,2017-12-11,1500.00,1500.00,Contribution,"International Marketing Program",
2017-2018,P4,"Mazeking Pictures Inc.",Halifax,"Nova Scotia",Canada,"Deer Park",English,Thriller,2018-02-12,15000.00,15000.00,Advance,"Development Program",
2017-2018,P4,"Corporation de d�veloppement et de production ACPAV Inc.",Montreal,Quebec,Canada,Antigone,French,Drama,2018-03-23,1000000.00,1000000.00,Advance,"Production Program",
2017-2018,P4,"YN Films Inc.",Toronto,Ontario,Canada,"Tongue Play",English,Comedy,2018-02-22,15000.00,15000.00,Advance,"Development Program",
2017-2018,P4,"Theo Films Inc.",Toronto,Ontario,Canada,DARKLIGHT,English,"Science fiction/Fantasy/Tale",2018-02-20,15000.00,15000.00,Advance,"Development Program",
2017-2018,P4,"Trailer Park Productions Limited",Halifax,"Nova Scotia",Canada,"The Best Christmas Ever",English,Comedy,2018-01-31,35000.00,35000.00,Advance,"Development Program",
2017-2018,P4,"Trailer Park Productions Limited",Halifax,"Nova Scotia",Canada,"Death of the Boogeyman",English,Drama,2018-01-31,35000.00,35000.00,Advance,"Development Program",
2017-2018,P4,"Realm Productions & Advertising Inc.","Saint John","New Brunswick",Canada,Experimental,English,Thriller,2018-01-24,15000.00,15000.00,Advance,"Development Program",
2017-2018,P4,"What We Have Productions Inc.",Toronto,Ontario,Canada,"T'es Belle Maryse",French,Drama,2018-01-26,15000.00,15000.00,Advance,"Development Program",
2017-2018,P4,"Viddywell Films Inc.",Toronto,Ontario,Canada,Helpless,English,Mystery/Crime/Police,2018-03-09,15000.00,15000.00,Advance,"Development Program",
2017-2018,P4,"Loud Baby Productions Inc.",Halifax,"Nova Scotia",Canada,"Return On Love",English,"Historical Drama",2018-03-20,15000.00,15000.00,Advance,"Development Program",
2017-2018,P4,"Vlimeuses productions inc.",Montreal,Quebec,Canada,"Vil et mis�rable",French,Comedy,2018-02-15,15000.00,15000.00,Advance,"Development Program",
2017-2018,P3,"9346-7983 Qu�bec inc.",Quebec,Quebec,Canada,Rupture,English,Drama,2017-12-20,1700.00,1700.00,Contribution,"International Marketing Program",
2017-2018,P4,"Carousel Pictures Inc.",Toronto,Ontario,Canada,"The Year Without Summer",English,Thriller,2018-02-20,15000.00,15000.00,Advance,"Development Program",
2017-2018,P4,"Less Bland Productions Inc.",Victoria,"British Columbia",Canada,"Tattie Bogles Feature Film",English,Action/Adventure,2018-03-13,15000.00,15000.00,Advance,"Development Program",
2017-2018,P4,"Films Outsiders Inc. (Les)",Montreal,Quebec,Canada,"Les retardataires ne seront pas admis",French,Drama,2018-01-11,20000.00,20000.00,Advance,"Development Program",
2017-2018,P4,"Play Your Gender Inc.",Dartmouth,"Nova Scotia",Canada,"Not My Brother",English,Drama,2018-02-21,15000.00,15000.00,Advance,"Development Program",
2017-2018,P4,"Devonshire Productions Inc.",Toronto,Ontario,Canada,WARG,English,Horror,2018-02-05,15000.00,15000.00,Advance,"Development Program",
2017-2018,P4,"9343679 Canada Inc.",Toronto,Ontario,Canada,"KILL ALL FATHERS",English,Drama,2018-02-14,15000.00,15000.00,Advance,"Development Program",
2017-2018,P4,"Gearshift Films Inc.",Toronto,Ontario,Canada,"Rumi Nation",English,Drama,2018-01-26,15000.00,15000.00,Advance,"Development Program",
2017-2018,P4,"Freddie Films Inc.",Toronto,Ontario,Canada,"FIVE TO ONE",English,"Romantic Comedy",2018-03-05,15000.00,15000.00,Advance,"Development Program",
2017-2018,P4,"CCI Productions Inc.",Toronto,Ontario,Canada,"Better Angels",English,Comedy,2018-01-29,15000.00,15000.00,Advance,"Development Program",
2017-2018,P4,"Motel Pictures Inc.",Toronto,Ontario,Canada,"Heidegger Stairwell",English,Drama,2018-02-15,15000.00,15000.00,Advance,"Development Program",
2017-2018,P4,"Paragraph Pictures Inc.",Toronto,Ontario,Canada,"FILM FESTIVAL",English,Comedy,2018-02-28,15000.00,15000.00,Advance,"Development Program",
2017-2018,P4,"Productions cin�-sc�ne inc.",Quebec,Quebec,Canada,Libertad,French,Drama,2018-02-16,15000.00,15000.00,Advance,"Development Program",
2017-2018,P4,"8585016 Canada Inc.",Toronto,Ontario,Canada,KK2,English,Comedy,2018-02-20,15000.00,15000.00,Advance,"Development Program",
2017-2018,P4,"Entract Films Inc.",Montreal,Quebec,Canada,"LES SC�NES FORTUITES",French,Comedy,2018-02-07,37575.00,37575.00,Advance,"Marketing Program",
2017-2018,P4,"Eye Steel Film Distribution inc.",Montreal,Quebec,Canada,"Anote's Ark",English,Documentary,2018-01-29,19700.00,19700.00,Contribution,"International Marketing Program",
2017-2018,P4,"Microscope Inc.",Montreal,Quebec,Canada,"A Worthy Companion",English,Drama,2018-01-05,1000.00,1000.00,Contribution,"International Marketing Program",
2017-2018,P4,"Milkman Productions Inc.",Toronto,Ontario,Canada,"My Dead Dad's Porno Tapes",English,Documentary,2018-01-17,1700.00,1700.00,Contribution,"International Marketing Program",
2017-2018,P4,"Lithium Studios Productions Inc.",Toronto,Ontario,Canada,"Mobile Homes",English,Drama,2018-03-26,1500.00,1500.00,Contribution,"International Marketing Program",
2017-2018,P4,"Phillip Barker Inc.",Toronto,Ontario,Canada,"Shadow Nettes",English,Drama,2018-01-19,1500.00,1500.00,Contribution,"International Marketing Program",
2017-2018,P4,"Motion 58 Entertainment Inc.",Vancouver,"British Columbia",Canada,"Adventures In Public School",English,Comedy,2018-03-23,39105.00,39105.00,Advance,"Marketing Program",
2017-2018,P4,"2587604 Ontario Inc",Toront,Ontario,Canada,"The Things You Think I'm Thinking",English,Drama,2018-02-05,1700.00,1700.00,Contribution,"International Marketing Program",
2017-2018,P4,"Film Forge Productions Inc.",Toronto,Ontario,Canada,M/M,English,Drama,2018-02-09,5000.00,5000.00,Contribution,"International Marketing Program",
2017-2018,P4,"Funfilm Distribution Inc.",Montreal,Quebec,Canada,"All you can eat Bouddha-Le Meilleur des s�jours",French,Drama,2018-03-08,28000.00,28000.00,Advance,"Marketing Program",
2017-2018,P3,"Echo Media Inc.",Montreal,Quebec,Canada,"Rois mongols (Les)",French,Drama,2017-12-21,24700.00,24700.00,Contribution,"International Marketing Program",
2017-2018,P4,"Films S�ville Inc. (Les)",Montreal,Quebec,Canada,"Trip � Trois (Le)",French,Comedy,2018-03-23,530652.00,530652.00,Advance,"Marketing Program",
2017-2018,P4,"Trinica Entertainment Consultants Inc.",Montreal,Quebec,Canada,"The Tree",English,"Science fiction/Fantasy/Tale",2018-01-19,15000.00,15000.00,Advance,"Development Program",
2017-2018,P4,"9342-5809 Qu�bec Inc.",Montreal,Quebec,Canada,"Les faux tatouages",French,Drama,2018-01-11,5000.00,5000.00,Contribution,"International Marketing Program",
2017-2018,P4,"Fra Diavolo Films Inc.","King city",Ontario,Canada,"For Nonna Anna",English,Drama,2018-01-10,1700.00,1700.00,Contribution,"International Marketing Program",
2017-2018,P4,"Wildling Pictures Inc.",Toronto,Ontario,Canada,"Untitled Molly McGlynn Project",English,Drama,2018-01-17,1500.00,1500.00,Contribution,"International Marketing Program",
2017-2018,P4,"Aquatinter Films Ltd.",Vancouver,"British Columbia",Canada,"Black Kite",English,Drama,2018-01-15,5000.00,5000.00,Contribution,"International Marketing Program",
2017-2018,P4,"Spotlight Television and Film Productions Inc.",Calgary,Alberta,Canada,"Living Proof",English,Documentary,2018-03-26,50000.00,50000.00,Advance,"Marketing Program",
2017-2018,P4,"Cardinal Pictures Inc.",Toronto,Ontario,Canada,"Trouble Women (aka Where the Bodies were Buried)",English,Drama,2018-02-22,1000.00,1000.00,Contribution,"International Marketing Program",
2017-2018,P4,"Streamline Pictures Inc.",Vancouver,"British Columbia",Canada,"Omerta (The)",English,,2018-02-15,1500.00,1500.00,Contribution,"International Marketing Program",
2017-2018,P4,"Mongrel Media Inc.",Toronto,Ontario,Canada,"Meditation Park",English,Drama,2018-03-15,142500.00,142500.00,Advance,"Marketing Program",
2017-2018,P4,"Achromatic Media Inc.",Montreal,Quebec,Canada,Fauve,French,Drama,2018-01-17,1700.00,1700.00,Contribution,"International Marketing Program",
2017-2018,P4,"Heart Shaped Movies Incorporated",Toronto,Ontario,Canada,AmeriKa,English,Drama,2018-01-12,1000.00,1000.00,Contribution,"International Marketing Program",
2017-2018,P4,"SC Productions Inc.",Toronto,Ontario,Canada,"Brooklyn King",English,,2018-01-16,1500.00,1500.00,Contribution,"International Marketing Program",
2017-2018,P4,"Earth Orbit Productions Inc.","Port CoQuitlam","British Columbia",Canada,Relapse,English,,2018-02-02,1500.00,1500.00,Contribution,"International Marketing Program",
2017-2018,P4,"Funfilm Distribution Inc.",Montreal,Quebec,Canada,Venus,English,Comedy,2018-03-20,45000.00,45000.00,Advance,"Marketing Program",
2017-2018,P4,"Forward Thinking Film Worldwide Inc.",Oro,Ontario,Canada,"Phoenix Wilder: And The Great Elephant Adventure",English,Action/Adventure,2018-03-22,50000.00,50000.00,Advance,"Marketing Program",
2017-2018,P4,"DM FILMS INC.",Toronto,Ontario,Canada,"Slap Happy",English,Drama,2018-02-12,1500.00,1500.00,Contribution,"International Marketing Program",
2017-2018,P4,"Productions du Rapide-Blanc Inc. (Les)",Montreal,Quebec,Canada,"Les lettres de ma m�re",French,Documentary,2018-03-05,13000.00,13000.00,Advance,"Marketing Program",
2017-2018,P4,"Item 7 Inc.",Montreal,Quebec,Canada,"My Camino",English,Drama,2018-02-05,1500.00,1500.00,Contribution,"International Marketing Program",
2017-2018,P4,"My Precious Pictures Inc.",Vancouver,"British Columbia",Canada,Chained,English,Horror,2018-01-29,1500.00,1500.00,Contribution,"International Marketing Program",
2017-2018,P4,"Sideways Dog Productions Inc.","Richmond Hill",Ontario,Canada,"Who You Know",English,"Romantic Comedy",2018-01-19,1500.00,1500.00,Contribution,"International Marketing Program",
2017-2018,P4,"Six Island Productions Inc.",Toronto,Ontario,Canada,"Jerusalem The Quarters",English,Drama,2018-03-02,1500.00,1500.00,Contribution,"International Marketing Program",
2017-2018,P4,"Films S�ville Inc. (Les)",Montreal,Quebec,Canada,"HOCHELAGA, TERRE DES �MES",French,"Historical Drama",2018-03-23,248613.00,248613.00,Advance,"Marketing Program",
2017-2018,P4,"9342-5809 Qu�bec Inc.",Montreal,Quebec,Canada,"Les faux tatouages",French,Drama,2018-01-19,10000.00,10000.00,Contribution,"International Marketing Program",
2017-2018,P4,"P�riph�ria Productions Inc.",Montreal,Quebec,Canada,Lemonade,English,Drama,2018-01-25,25000.00,25000.00,Contribution,"International Marketing Program",
2017-2018,P4,"Artifact Films 2011 Inc.",Squamish,"British Columbia",Canada,"Chamber (The)",English,Thriller,2018-02-02,1500.00,1500.00,Contribution,"International Marketing Program",
2017-2018,P4,"Foundry Films Inc.",Toronto,Ontario,Canada,Goalie,English,Drama,2018-01-31,52320.00,52320.00,Advance,"Production Program",
2017-2018,P4,"Foundry Films Inc.",Toronto,Ontario,Canada,Goalie,English,Drama,2018-03-19,0.00,52320.00,Advance,"Production Program","Amended Contract Signed 31-Jan-2018"
2017-2018,P4,"Foundry Films Inc.",Toronto,Ontario,Canada,Goalie,English,Drama,2018-03-19,52320.00,0.00,Investment,"Production Program","Amended Contract Signed 31-Jan-2018"
2017-2018,P4,"What Walaa Wants Productions Inc.",Toronto,Ontario,Canada,"What Walaa Wants",English,Documentary,2018-03-05,24000.00,24000.00,Contribution,"International Marketing Program",
2017-2018,P4,"Blue Goat Films Inc.",Calgary,Alberta,Canada,"Little Wisdom (A)",English,Drama,2018-02-27,1500.00,1500.00,Contribution,"International Marketing Program",
2017-2018,P4,"Voyelles Films inc.",Montreal,Quebec,Canada,"All you can eat Bouddha",French,Drama,2018-01-24,3500.00,3500.00,Contribution,"International Marketing Program",
2017-2018,P4,"Red Cedar Films Inc.",Vancouver,"British Columbia",Canada,Home,English,Drama,2018-02-02,1500.00,1500.00,Contribution,"International Marketing Program",
2017-2018,P4,"Association qu�b�coise de la production m�diatique",Montreal,Quebec,Canada,"Congr�s AQPM",,,2018-02-01,7000.00,7000.00,Contribution,"Promotion Program",
2017-2018,P4,"julijette inc.",Winnipeg,Manitoba,Canada,Accidence,English,Drama,2018-02-05,2500.00,2500.00,Contribution,"International Marketing Program",
2017-2018,P4,"Storyline Entertainment Inc.",Toronto,Ontario,Canada,"Dolphin Man",English,Documentary,2018-02-08,1500.00,1500.00,Contribution,"International Marketing Program",
2017-2018,P4,"Prends Ca Court! 2010 Inc.",St-Lambert,Quebec,Canada,"Gala court m�trage Prends �a court!",,,2018-03-09,7000.00,7000.00,Contribution,"Promotion Program",
2017-2018,P4,"Malefic Films Inc.",Halifax,"Nova Scotia",Canada,"Child Remains (The)",English,Horror,2018-03-26,50000.00,50000.00,Advance,"Marketing Program",
2017-2018,P4,"1114470 B.C. LTD.","Port Mcneill","British Columbia",Canada,"What Keeps You Alive",English,Thriller,2018-03-28,3700.00,3700.00,Contribution,"International Marketing Program",
2017-2018,P4,"Mia Film Inc.",Winnipeg,Manitoba,Canada,"Moon Babies",English,,2018-02-16,1500.00,1500.00,Contribution,"International Marketing Program",
2017-2018,P4,"Milkman Productions Inc.",Toronto,Ontario,Canada,"My Dead Dad's Porno Tapes",English,Documentary,2018-03-22,1500.00,1500.00,Contribution,"International Marketing Program",
2017-2018,P4,"Maison 4:3 Inc.",Montreal,Quebec,Canada,"Terre vue du coeur (La)",French,Documentary,2018-03-21,65000.00,65000.00,Advance,"Marketing Program",
2017-2018,P4,"Motel Pictures Inc.",Toronto,Ontario,Canada,"We forgot to break up",English,Drama,2018-02-20,2500.00,2500.00,Contribution,"International Marketing Program",
2017-2018,P4,"Newton's Cradle Ltd.",Toronto,Ontario,Canada,Milk,English,Drama,2018-02-19,1500.00,1500.00,Contribution,"International Marketing Program",
2017-2018,P4,"Hamilton-Mehta Productions Inc.",Toronto,Ontario,Canada,"Earth- film refurbishment and itunes placement",,,2018-03-02,16000.00,16000.00,Contribution,"Promotion Program",
2017-2018,P4,"Elevation Pictures Corp.",Toronto,Ontario,Canada,"Breadwinner (The)",English,Drama,2018-03-28,185917.00,185917.00,Advance,"Marketing Program",
2017-2018,P4,"Axia Films inc.",Montreal,Quebec,Canada,"CHIEN DE GARDE",French,Drama,2018-03-16,100000.00,100000.00,Advance,"Marketing Program",
2017-2018,P4,"Motion 58 Entertainment Inc.",Vancouver,"British Columbia",Canada,"Adventures In Public School",English,Comedy,2018-02-28,1500.00,1500.00,Contribution,"International Marketing Program",
2017-2018,P4,"Motion 58 Entertainment Inc.",Vancouver,"British Columbia",Canada,"Adventures In Public School",English,Comedy,2018-02-28,1500.00,1500.00,Contribution,"International Marketing Program",
2017-2018,P4,"N5 Pictures Inc.",Mississauga,Ontario,Canada,GEAR,English,Mystery/Crime/Police,2018-03-13,30000.00,30000.00,Advance,"Marketing Program",
2017-2018,P4,"GROUPE PVP INC.",Matane,Quebec,Canada,"Coproduction market - no specific project",English,,2018-02-12,1000.00,1000.00,Contribution,"International Marketing Program",
2017-2018,P4,"Oddfellows Entertainment Inc.",Vancouver,"British Columbia",Canada,"First Light",English,"Science fiction/Fantasy/Tale",2018-02-23,2500.00,2500.00,Contribution,"International Marketing Program",
2017-2018,P4,"Level Film Inc.",Toronto,Ontario,Canada,"Another Kind of Wedding",English,Comedy,2018-03-27,30000.00,30000.00,Advance,"Marketing Program",
2017-2018,P4,"eMerge Enterprises Ltd",Montreal,Quebec,Canada,"Coproduction market - no specific project",English,,2018-03-14,1500.00,1500.00,Contribution,"International Marketing Program",
2017-2018,P4,"Blac Op Films Incorporated",Dartmouth,"Nova Scotia",Canada,"Black Cop",English,Drama,2018-03-16,1500.00,1500.00,Contribution,"International Marketing Program",
2017-2018,P4,"Independent Edge Films Inc.",Vancouver,"British Columbia",Canada,"The New Romantic (formerly The Undergraduate)",English,Comedy,2018-03-13,5000.00,5000.00,Contribution,"International Marketing Program",
2017-2018,P4,"Scarborough Pictures Inc.",Toronto,Ontario,Canada,SHOOK,English,Drama,2018-03-21,15000.00,15000.00,Advance,"Development Program",
2017-2018,P4,"Les Films de L'Hydre Inc.",Montreal,Quebec,Canada,"Chiennes de fa�ence",French,Drama,2018-02-23,15000.00,15000.00,Advance,"Development Program",
2017-2018,P4,"Perfect Pictures Inc.",Calgary,Alberta,Canada,"Rogues and Renegades",English,Action/Adventure,2018-03-26,15000.00,15000.00,Advance,"Development Program",
2017-2018,P4,"Curiosity Pictures Inc.",Burnaby,"British Columbia",Canada,Ballyhoo,English,Drama,2018-03-20,15000.00,15000.00,Advance,"Development Program",
2017-2018,P4,"Saaren Films Inc.",Toronto,Ontario,Canada,"In the Name of Honour",English,Documentary,2018-03-26,15000.00,15000.00,Advance,"Development Program",
2017-2018,P4,"Films S�ville Inc. (Les)",Montreal,Quebec,Canada,"Nelly et Simon : Mission Y�ti",French,Drama,2018-03-23,206497.00,206497.00,Advance,"Marketing Program",
2017-2018,P4,"Films S�ville Inc. (Les)",Montreal,Quebec,Canada,"Pour vivre ici",French,Drama,2018-03-23,127950.00,127950.00,Advance,"Marketing Program",
2017-2018,P4,"Intuitive Pictures Inc.",Montreal,Quebec,Canada,"Impact Films",,,2018-02-27,10500.00,10500.00,Contribution,"Promotion Program",
2017-2018,P4,"A71 Entertainment Inc.",Toronto,Ontario,Canada,"My Enemy, My Brother",English,Documentary,2018-03-20,24000.00,24000.00,Advance,"Marketing Program",
2017-2018,P4,"Back Road Productions Inc.",Edmonton,Alberta,Canada,"Peak Oil",English,Drama,2018-03-22,1500.00,1500.00,Contribution,"International Marketing Program",
2017-2018,P4,"Films Christal, s.e.c.(Les)",Montreal,Quebec,Canada,"Charlotte a du fun",French,Comedy,2018-03-23,57000.00,57000.00,Advance,"Marketing Program",
2017-2018,P4,"Films S�ville Inc. (Les)",Montreal,Quebec,Canada,"The Death and Life of John F. Donovan",English,Comedy,2018-03-23,1236903.00,1236903.00,Advance,"Marketing Program",
2017-2018,P4,"Lockpicker Productions Inc.",Toronto,Ontario,Canada,"The Lockpicker",English,Drama,2018-03-27,24750.00,24750.00,Advance,"Marketing Program",
2017-2018,P4,"Primitive Entertainment Inc.",Toronto,Ontario,Canada,"There is a House Here",English,Documentary,2018-03-23,1500.00,1500.00,Contribution,"International Marketing Program",
2017-2018,P4,"CCI Productions Inc.",Toronto,Ontario,Canada,"Someone Else's Wedding",English,"Romantic Comedy",2018-03-26,4700.00,4700.00,Contribution,"International Marketing Program",
2017-2018,P4,"P�riph�ria Productions Inc.",Montreal,Quebec,Canada,Lemonade,English,Drama,2018-03-08,5000.00,5000.00,Contribution,"International Marketing Program",
2017-2018,P4,"Bankdrama Film Ltd.",Toronto,Ontario,Canada,Stockholm,English,Mystery/Crime/Police,2018-03-16,4200.00,4200.00,Contribution,"International Marketing Program",
2017-2018,P4,"Films S�ville Inc. (Les)",Montreal,Quebec,Canada,"HOCHELAGA, TERRE DES �MES",French,"Historical Drama",2018-03-23,1000.00,1000.00,Contribution,"International Marketing Program",
2017-2018,P4,"Indian Horse Productions (BC) Inc.",Vancouver,"British Columbia",Canada,"Indian Horse",English,Drama,2018-03-20,1500.00,1500.00,Contribution,"International Marketing Program",
2017-2018,P4,"9348-8310 Qu�bec inc.",Montreal,Quebec,Canada,"Charlotte a du fun",French,Comedy,2018-03-22,5000.00,5000.00,Contribution,"International Marketing Program",
2017-2018,P4,Kino00,Montreal,Quebec,Canada,"Macro Kino et Gala Kino",,,2018-03-22,20000.00,20000.00,Contribution,"Promotion Program",
